Workbook

Sheet Summary
A3: First Flexible (No.7) PLC
A5: Information as at the Principal Determination Date | B5: 2007-05-31 | C5: 2007-08-31 | D5: 2007-11-30 | E5: 2008-02-29 | F5: 2008-05-30 | G5: 2008-08-31 | H5: 2008-11-28 | I5: 2009-02-27 | J5: 2009-05-29 | K5: 2009-08-28 | L5: 2009-11-30 | M5: 2010-02-26 | N5: 2010-05-28 | O5: 2010-08-31 | P5: 2010-11-30 | Q5: 2011-02-28 | R5: 2011-05-31 | S5: 2011-08-31 | T5: 2011-11-30 | U5: 2012-02-29 | V5: 2012-05-31 | W5: 2012-08-31 | X5: 2012-11-30 | Y5: 2013-02-28 | Z5: 2013-05-31 | AA5: 2013-08-30 | AB5: 2013-11-29 | AC5: 2014-02-28 | AD5: 2014-05-30 | AE5: 2014-08-29 | AF5: 2014-11-28 | AG5: 2015-02-27 | AH5: 2015-05-29 | AI5: 2015-08-28 | AJ5: 2015-11-30 | AK5: 2016-02-29 | AL5: 2016-05-31 | AM5: 2016-08-31 | AN5: 2016-11-30 | AO5: 2017-02-28 | AP5: 2017-05-31 | AQ5: 2017-08-31 | AR5: 2017-11-30 | AS5: 2018-02-28 | AT5: 2018-05-31 | AU5: 2018-08-31 | AV5: 2018-11-30 | AW5: 2019-02-28 | AX5: 2019-05-31
A6: Mortgage Asset Balance | B6: 236185 | C6: 214911 | D6: 197053 | E6: 183590 | F6: 170729 | G6: 161625 | H6: 153161 | I6: 146109 | J6: 137492 | K6: 131432 | L6: 125315 | M6: 121240 | N6: 116436 | O6: 110730 | P6: 106131 | Q6: 103752 | R6: 99582 | S6: 95222 | T6: 89189 | U6: 84316 | V6: 79746 | W6: 74231 | X6: 68382 | Y6: 63905 | Z6: 60140 | AA6: 56236 | AB6: 51960 | AC6: 47725 | AD6: 44618 | AE6: 41201 | AF6: 37653 | AG6: 35212.49021 | AH6: 33209.00781 | AI6: 30479.24892 | AJ6: 28160.8328 | AK6: 26016.81413 | AL6: 24183.54918 | AM6: 21190.35013 | AN6: 19877.46779 | AO6: 18653.9512 | AP6: 17002.57942 | AQ6: 15954.85272 | AR6: 14841.83171 | AS6: 13784.95276 | AT6: 13011.08061 | AU6: 12392.44108 | AV6: 10860.14217 | AW6: 10052.29032 | AX6: 0
A7: Total Notes | B7: =SUM(B8:B10) -> 236185 | C7: 214911 | D7: 197053 | E7: 183590 | F7: 170729 | G7: 161625 | H7: =SUM(H8:H10) -> 153161 | I7: =SUM(I8:I10) -> 146109 | J7: =SUM(J8:J10) -> 137492 | K7: =SUM(K8:K10) -> 131432 | L7: =SUM(L8:L10)+1 -> 125315 | M7: =SUM(M8:M10)+1 -> 121240 | N7: =SUM(N8:N10) -> 116436 | O7: =SUM(O8:O10)-1 -> 110730 | P7: =SUM(P8:P10) -> 106131 | Q7: =SUM(Q8:Q10)+2 -> 103752 | R7: =SUM(R8:R10)+1 -> 99582 | S7: =SUM(S8:S10) -> 95222 | T7: =SUM(T8:T10) -> 89189 | U7: =SUM(U8:U10)+1 -> 84316 | V7: =SUM(V8:V10)+2 -> 79746 | W7: =SUM(W8:W10) -> 74231 | X7: =SUM(X8:X10)+2 -> 68382 | Y7: =SUM(Y8:Y10)+1 -> 63905 | Z7: =SUM(Z8:Z10)+1 -> 60140 | AA7: =SUM(AA8:AA10) -> 56236 | AB7: =SUM(AB8:AB10) -> 51960 | AC7: =SUM(AC8:AC10) -> 47725 | AD7: =SUM(AD8:AD10) -> 44618 | AE7: =SUM(AE8:AE10)+1 -> 41201 | AF7: 37653 | AG7: 35212 | AH7: 33209 | AI7: 30479 | AJ7: 28161 | AK7: =SUM(AK8:AK10)+1 -> 26017 | AL7: =SUM(AL8:AL10)+2 -> 24184 | AM7: =SUM(AM8:AM10)+1 -> 21190 | AN7: =SUM(AN8:AN10)+1 -> 19877 | AO7: =SUM(AO8:AO10)+1 -> 18654 | AP7: =SUM(AP8:AP10)+2 -> 17003 | AQ7: =SUM(AQ8:AQ10)+1 -> 15955 | AR7: 14842 | AS7: 13785 | AT7: 13011 | AU7: 12392 | AV7: 10860 | AW7: =SUM(AW8:AW10)+1 -> 10052 | AX7: =SUM(AX8:AX10) -> 0
A8: Class A Notes | B8: 228085 | C8: 206811 | D8: 188953 | E8: 175490 | F8: 162629 | G8: 153525 | H8: 145061 | I8: 138009 | J8: 129392 | K8: 123332 | L8: 117796 | M8: 113965 | N8: 109450 | O8: 104087 | P8: 99763 | Q8: 97526 | R8: 93607 | S8: 89508 | T8: 83837 | U8: 79257 | V8: 74960 | W8: 69777 | X8: 64278 | Y8: 60070 | Z8: 56531 | AA8: 52862 | AB8: 48764 | AC8: 44529 | AD8: 41422 | AE8: 38004 | AF8: 34456 | AG8: 32015 | AH8: 30012 | AI8: 27282 | AJ8: 24964 | AK8: 22820 | AL8: 20986 | AM8: 17993 | AN8: 16680 | AO8: 15457 | AP8: 13805 | AQ8: 12758 | AR8: 11645 | AS8: 10588 | AT8: 9814 | AU8: 9195 | AV8: 7663 | AW8: 6855 | AX8: 0
A9: Class B Notes | B9: 4050 | C9: 4050 | D9: 4050 | E9: 4050 | F9: 4050 | G9: 4050 | H9: 4050 | I9: 4050 | J9: 4050 | K9: 4050 | L9: 3759 | M9: 3637 | N9: 3493 | O9: 3322 | P9: 3184 | Q9: 3112 | R9: 2987 | S9: 2857 | T9: 2676 | U9: 2529 | V9: 2392 | W9: 2227 | X9: 2051 | Y9: 1917 | Z9: 1804 | AA9: 1687 | AB9: 1598 | AC9: 1598 | AD9: 1598 | AE9: 1598 | AF9: 1598 | AG9: 1598 | AH9: 1598 | AI9: 1598 | AJ9: 1598 | AK9: 1598 | AL9: 1598 | AM9: 1598 | AN9: 1598 | AO9: 1598 | AP9: 1598 | AQ9: 1598 | AR9: 1598 | AS9: 1598 | AT9: 1598 | AU9: 1598 | AV9: 1598 | AW9: 1598 | AX9: 0
A10: Class C Notes | B10: 4050 | C10: 4050 | D10: 4050 | E10: 4050 | F10: 4050 | G10: 4050 | H10: 4050 | I10: 4050 | J10: 4050 | K10: 4050 | L10: 3759 | M10: 3637 | N10: 3493 | O10: 3322 | P10: 3184 | Q10: 3112 | R10: 2987 | S10: 2857 | T10: 2676 | U10: 2529 | V10: 2392 | W10: 2227 | X10: 2051 | Y10: 1917 | Z10: 1804 | AA10: 1687 | AB10: 1598 | AC10: 1598 | AD10: 1598 | AE10: 1598 | AF10: 1598 | AG10: 1598 | AH10: 1598 | AI10: 1598 | AJ10: 1598 | AK10: 1598 | AL10: 1598 | AM10: 1598 | AN10: 1598 | AO10: 1598 | AP10: 1598 | AQ10: 1598 | AR10: 1598 | AS10: 1598 | AT10: 1598 | AU10: 1598 | AV10: 1598 | AW10: 1598 | AX10: 0
A11: Class B and C Notes as a % of the Total Notes | B11: =SUM(B9:B10)/B7 -> 0.03429514999 | C11: 0.03769002052 | D11: 0.04110569238 | E11: 0.04412005011 | F11: 0.04744360946 | G11: 0.05011600928 | H11: 0.05288552569 | I11: 0.05543806336 | J11: 0.05891251855 | K11: 0.06162882707 | L11: 0.0599928181 | M11: 0.05999670076 | N11: 0.05999862585 | O11: 0.0600018062 | P11: 0.06000131912 | Q11: 0.05998920503 | R11: 0.05999076138 | S11: 0.06000714121 | T11: 0.06000740002 | U11: =SUM(U9:U10)/U7 -> 0.05998861426 | V11: 0.05999046974 | W11: 0.060001886 | X11: 0.05998654617 | Y11: 0.05999530553 | Z11: 0.05999334885 | AA11: =SUM(AA9:AA10)/AA7 -> 0.05999715485 | AB11: 0.06150885296 | AC11: 0.06696699843 | AD11: 0.07163028374 | AE11: 0.07757093274 | AF11: 0.08488035482 | AG11: =SUM(AG9:AG10)/AG7 -> 0.0907645121 | AH11: 0.09623897136 | AI11: =SUM(AI9:AI10)/AI7 -> 0.1048590833 | AJ11: 0.113490288 | AK11: =SUM(AK9:AK10)/AK7 -> 0.1228427567 | AL11: 0.1321534899 | AM11: =SUM(AM9:AM10)/AM7 -> 0.1508258613 | AN11: 0.1607888514 | AO11: =SUM(AO9:AO10)/AO7 -> 0.1713305457 | AP11: =SUM(AP9:AP10)/AP7 -> 0.1879668294 | AQ11: 0.2003133814 | AR11: 0.2153348605 | AS11: 0.2318462096 | AT11: 0.245638306 | AU11: 0.257908328 | AV11: =SUM(AV9:AV10)/AV7 -> 0.2942909761 | AW11: =SUM(AW9:AW10)/AW7 -> 0.3179466773 | AX11: 0
A12: Overall Lifetime Redemption Rate | B12: 0.3759 | C12: 0.3741 | D12: 0.3667 | E12: 0.3526 | F12: 0.3458 | G12: 0.3323 | H12: 0.3213 | I12: 0.3119 | J12: 0.3074 | K12: 0.2992 | L12: 0.293 | M12: 0.2849 | N12: 0.2793 | O12: 0.2766 | P12: 0.2724 | Q12: 0.2654 | R12: 0.262 | S12: 0.2598 | T12: 0.2607 | U12: 0.2603 | V12: 0.2592 | W12: 0.2605 | X12: 0.2634 | Y12: 0.2644 | Z12: 0.2646 | AA12: 0.267 | AB12: 0.2705 | AC12: 0.2711 | AD12: 0.2699 | AE12: 0.27 | AF12: 0.2711 | AG12: 0.27 | AH12: 0.2682 | AI12: 0.2689 | AJ12: 0.269 | AK12: 0.269 | AL12: 0.2686 | AM12: 0.2727 | AN12: 0.2716 | AO12: 0.2704 | AP12: 0.2714 | AQ12: 0.2703 | AR12: 0.2699 | AS12: 0.2696 | AT12: 0.2682 | AU12: 0.2664 | AV12: 0.2697 | AW12: 0.2697 | AX12: 1
A13: Quarterly Redemption Rate | B13: 0.1511 | C13: 0.1096 | D13: 0.1016 | E13: 0.0861 | F13: 0.0903 | G13: 0.0708 | H13: 0.0685 | I13: 0.0657 | J13: 0.0751 | K13: 0.0595 | L13: 0.0618 | M13: 0.0502 | N13: 0.056 | O13: 0.0662 | P13: 0.057 | Q13: 0.0392 | R13: 0.0555 | S13: 0.0606 | T13: 0.0778 | U13: 0.0703 | V13: 0.065 | W13: 0.0816 | X13: 0.0936 | Y13: 0.081 | Z13: 0.0754 | AA13: 0.094 | AB13: 0.1042 | AC13: 0.0815 | AD13: 0.0651 | AE13: 0.0766 | AF13: 0.0861 | AG13: 0.0648 | AH13: 0.0569 | AI13: 0.0822 | AJ13: 0.0761 | AK13: 0.0761 | AL13: 0.0705 | AM13: 0.1238 | AN13: 0.062 | AO13: 0.0615 | AP13: 0.0885 | AQ13: 0.0616 | AR13: 0.0698 | AS13: 0.0712 | AT13: 0.0561 | AU13: 0.0476 | AV13: 0.1236 | AW13: 0.0744 | AX13: 1
A14: Further Advances released in the quarter | B14: N/A | C14: N/A | D14: N/A | E14: N/A | F14: N/A | G14: N/A | H14: N/A | I14: N/A | J14: N/A | K14: N/A | L14: N/A | M14: N/A | N14: N/A | O14: N/A | P14: N/A | Q14: N/A | R14: N/A | S14: N/A | T14: N/A | U14: N/A | V14: N/A | W14: N/A | X14: N/A | Y14: N/A | Z14: N/A | AA14: N/A | AB14: N/A | AC14: N/A | AD14: N/A | AE14: N/A | AF14: N/A | AG14: N/A | AH14: N/A | AI14: N/A | AJ14: N/A | AK14: N/A | AL14: N/A | AM14: N/A | AN14: N/A | AO14: N/A | AP14: N/A | AQ14: N/A | AR14: N/A | AS14: N/A | AT14: N/A | AU14: N/A | AV14: N/A | AW14: N/A | AX14: N/A
A15: First Loss Fund Balance | B15: 806 | C15: 806 | D15: 806 | E15: 806 | F15: 806 | G15: 806 | H15: 806 | I15: 806 | J15: 806 | K15: 806 | L15: 806 | M15: 806 | N15: 806 | O15: 806 | P15: 806 | Q15: 806 | R15: 806 | S15: 806 | T15: 806 | U15: 806 | V15: 806 | W15: 806 | X15: 806 | Y15: 806 | Z15: 806 | AA15: 806 | AB15: 806 | AC15: 806 | AD15: 806 | AE15: 806 | AF15: 806 | AG15: 806 | AH15: 806 | AI15: 806 | AJ15: 806 | AK15: 806 | AL15: 806 | AM15: 806 | AN15: 806 | AO15: 806 | AP15: 806 | AQ15: 806 | AR15: 806 | AS15: 806 | AT15: 806 | AU15: 806 | AV15: 806 | AW15: 806 | AX15: 0
A16: First Loss Fund as a % of the Mortgages | B16: =+B15/B6 -> 0.003412579122 | C16: 0.003750389696 | D16: 0.00409027013 | E16: 0.004390217332 | F16: 0.004720932003 | G16: 0.004986852282 | H16: 0.00526243626 | I16: 0.005516429515 | J16: 0.005862159253 | K16: 0.006132448719 | L16: 0.006431791884 | M16: 0.006647970967 | N16: 0.006922257721 | O16: 0.007278966856 | P16: 0.007594388068 | Q16: 0.007768524944 | R16: 0.008093832219 | S16: 0.008464430489 | T16: 0.009036988866 | U16: =+U15/U6 -> 0.009559277006 | V16: 0.01010709001 | W16: 0.01085799733 | X16: 0.0117867275 | Y16: 0.01261247164 | Z16: 0.01340206186 | AA16: =+AA15/AA6 -> 0.01433245608 | AB16: 0.01551193226 | AC16: 0.01688842326 | AD16: 0.01806445829 | AE16: 0.01956263197 | AF16: 0.02140599687 | AG16: =+AG15/AG6 -> 0.02288960523 | AH16: 0.02427052337 | AI16: =+AI15/AI6 -> 0.02644422119 | AJ16: 0.02862131265 | AK16: =+AK15/AK6 -> 0.03097996534 | AL16: 0.03332844133 | AM16: =+AM15/AM6 -> 0.03803618133 | AN16: 0.0405484244 | AO16: =+AO15/AO6 -> 0.0432080041 | AP16: 0.04740457198 | AQ16: =+AQ15/AQ6 -> 0.05051754561 | AR16: 0.05430596545 | AS16: =+AS15/AS6 -> 0.05846955111 | AT16: 0.06194719902 | AU16: =+AU15/AU6 -> 0.06503964754 | AV16: 0.07421633966 | AW16: =+AW15/AW6 -> 0.08018073238 | AX16: 0
A17: Opening PDL Balance | B17: 0 | C17: 0 | D17: 0 | E17: 0 | F17: 0 | G17: 0 | H17: 0 | I17: 0 | J17: 0 | K17: 0 | L17: 0 | M17: 0 | N17: 0 | O17: 0 | P17: 0 | Q17: 0 | R17: 0 | S17: 0 | T17: 0 | U17: 0 | V17: 0 | W17: 0 | X17: 0 | Y17: 0 | Z17: 0 | AA17: 0 | AB17: 0 | AC17: 0 | AD17: 0 | AE17: 0 | AF17: 0 | AG17: 0 | AH17: 0 | AI17: 0 | AJ17: 0 | AK17: 0 | AL17: 0 | AM17: 0 | AN17: 0 | AO17: 0 | AP17: 0 | AQ17: 0 | AR17: 0 | AS17: 0 | AT17: 0 | AU17: 0 | AV17: 0 | AW17: 0 | AX17: 0
A18: Quarterly Losses | B18: =SUM(B81+B111) -> 34 | C18: -8 | D18: 0 | E18: 1 | F18: -2 | G18: 0 | H18: =SUM(H81+H111) -> 14 | I18: -4 | J18: -6 | K18: 25 | L18: 0 | M18: 0 | N18: =SUM(N81+N111) -> -17 | O18: 5 | P18: -5 | Q18: -1 | R18: 1 | S18: 12 | T18: =SUM(T81+T111) -> -12 | U18: 0 | V18: 0 | W18: 0 | X18: 0 | Y18: 11 | Z18: =SUM(Z81+Z111) -> -10 | AA18: 0 | AB18: 1 | AC18: 0 | AD18: 0 | AE18: 1 | AF18: =SUM(AF81+AF111) -> 0 | AG18: 3 | AH18: =SUM(AH81+AH111) -> 11 | AI18: -10 | AJ18: =SUM(AJ81+AJ111) -> 0 | AK18: 1 | AL18: =SUM(AL81+AL111) -> 0 | AM18: 146 | AN18: =SUM(AN81+AN111) -> 25 | AO18: 0 | AP18: =SUM(AP81+AP111) -> 1 | AQ18: -1 | AR18: =SUM(AR81+AR111) -> 0 | AS18: 0 | AT18: =SUM(AT81+AT111) -> 0 | AU18: 0 | AV18: =SUM(AV81+AV111) -> 0 | AW18: 0 | AX18: =SUM(AX81+AX111) -> 0
A19: Quarterly Loss Rate (annualised) | B19: =1-(1-B18/B6)^4 -> 0.000575695476 | C19: 0 | D19: 0 | E19: 2.178750105e-05 | F19: -4.685870927e-05 | G19: 0 | H19: 0.0003655781973 | I19: 0 | J19: 0 | K19: 0.0007606326599 | L19: 0 | M19: 0 | N19: 0 | O19: 0.0001806072916 | P19: 0 | Q19: -3.855403106e-05 | R19: 4.016729679e-05 | S19: 0.0005039899102 | T19: 0 | U19: 0 | V19: =1-(1-V18/V6)^4 -> 0 | W19: =1-(1-W18/W6)^4 -> 0 | X19: =1-(1-X18/X6)^4 -> 0 | Y19: =1-(1-Y18/Y6)^4 -> 0.0006883442718 | Z19: 0 | AA19: =1-(1-AA18/AA6)^4 -> 0 | AB19: 7.698007175e-05 | AC19: 0 | AD19: 0 | AE19: 9.70814877e-05 | AF19: 0 | AG19: =1-(1-AG18/AG6)^4 -> 0.0003407446184 | AH19: 0.001324283566 | AI19: 0 | AJ19: 0 | AK19: =1-(1-AK18/AK6)^4 -> 0.0001537378622 | AL19: 0 | AM19: =1-(1-AM18/AM6)^4 -> 0.02727619385 | AN19: 0.005021338903 | AO19: =1-(1-AO18/AO6)^4 -> 0 | AP19: 0.0002352376676 | AQ19: 0 | AR19: 0 | AS19: 0 | AT19: 0 | AU19: 0 | AV19: 0 | AW19: 0 | AX19: 0
A20: PDL Replenishment made during the quarter (-ve = recoveries) | B20: 34 | C20: -8 | D20: 0 | E20: 1 | F20: -2 | G20: 0 | H20: 14 | I20: -4 | J20: -6 | K20: 25 | L20: 0 | M20: 0 | N20: -17 | O20: 5 | P20: -5 | Q20: -1 | R20: 1 | S20: 12 | T20: -12 | U20: 0 | V20: 0 | W20: 0 | X20: 0 | Y20: 11 | Z20: -10 | AA20: 0 | AB20: 1 | AC20: 0 | AD20: 0 | AE20: 1 | AF20: 0 | AG20: 3 | AH20: 11 | AI20: -10 | AJ20: 0 | AK20: 1 | AL20: 0 | AM20: 146 | AN20: 25 | AO20: 0 | AP20: 1 | AQ20: -1 | AR20: 0 | AS20: 0 | AT20: 0 | AU20: 0 | AV20: 0 | AW20: 0 | AX20: 0
A21: Outstanding PDL at end of the quarter | B21: =B17+B18-B20 -> 0 | C21: 0 | D21: 0 | E21: 0 | F21: 0 | G21: 0 | H21: 0 | I21: 0 | J21: 0 | K21: 0 | L21: 0 | M21: 0 | N21: 0 | O21: 0 | P21: 0 | Q21: 0 | R21: 0 | S21: 0 | T21: 0 | U21: =U17+U18-U20 -> 0 | V21: 0 | W21: 0 | X21: 0 | Y21: 0 | Z21: 0 | AA21: =AA17+AA18-AA20 -> 0 | AB21: 0 | AC21: 0 | AD21: 0 | AE21: 0 | AF21: 0 | AG21: =AG17+AG18-AG20 -> 0 | AH21: 0 | AI21: =AI17+AI18-AI20 -> 0 | AJ21: 0 | AK21: =AK17+AK18-AK20 -> 0 | AL21: 0 | AM21: =AM17+AM18-AM20 -> 0 | AN21: 0 | AO21: =AO17+AO18-AO20 -> 0 | AP21: 0 | AQ21: =AQ17+AQ18-AQ20 -> 0 | AR21: 0 | AS21: =AS17+AS18-AS20 -> 0 | AT21: 0 | AU21: =AU17+AU18-AU20 -> 0 | AV21: 0 | AW21: =AW17+AW18-AW20 -> 0 | AX21: 0
A22: Spread Trap repayment in the quarter | B22: N/A | C22: N/A | D22: N/A | E22: N/A | F22: N/A | G22: N/A | H22: N/A | I22: N/A | J22: N/A | K22: N/A | L22: N/A | M22: N/A | N22: N/A | O22: N/A | P22: N/A | Q22: N/A | R22: N/A | S22: N/A | T22: N/A | U22: N/A | V22: N/A | W22: N/A | X22: N/A | Y22: N/A | Z22: N/A | AA22: N/A | AB22: N/A | AC22: N/A | AD22: N/A | AE22: N/A | AF22: N/A | AG22: N/A | AH22: N/A | AI22: N/A | AJ22: N/A | AK22: N/A | AL22: N/A | AM22: N/A | AN22: N/A | AO22: N/A | AP22: N/A | AQ22: N/A | AR22: N/A | AS22: N/A | AT22: N/A | AU22: N/A | AV22: N/A | AW22: N/A | AX22: N/A
A23: Spread % (WA Funding Rate less WA Interest Rate) | B23: 0.0178 | C23: 0.0208 | D23: 0.0125 | E23: 0.0134 | F23: 0.017 | G23: 0.0171 | H23: 0.0189 | I23: 0.0304 | J23: 0.0347 | K23: 0.0402 | L23: 0.0463 | M23: 0.0462 | N23: 0.0458 | O23: 0.045 | P23: 0.0451 | Q23: 0.0448 | R23: 0.0442 | S23: 0.044 | T23: 0.0428 | U23: 0.0414 | V23: 0.0402 | W23: 0.0408 | X23: 0.0432 | Y23: 0.044 | Z23: 0.0439 | AA23: 0.0431 | AB23: 0.0421 | AC23: 0.0414 | AD23: 0.041 | AE23: 0.0407 | AF23: 0.0404 | AG23: 0.0398 | AH23: 0.0397 | AI23: 0.0391 | AJ23: 0.0386 | AK23: 0.0381 | AL23: 0.0383 | AM23: 0.036 | AN23: 0.0353 | AO23: 0.0346 | AP23: 0.0343 | AQ23: 0.0343 | AR23: 0.0343 | AS23: 0.0341 | AT23: 0.0331 | AU23: 0.0328 | AV23: 0.034 | AW23: 0.0329 | AX23: 0
A24: Total Income as a % of the Mortgages | B24: 0.0302 | C24: 0.0233 | D24: 0.0217 | E24: 0.0224 | F24: 0.0193 | G24: 0.0204 | H24: 0.0204 | I24: 0.0178 | J24: 0.0156 | K24: 0.0145 | L24: 0.0137 | M24: 0.0151 | N24: 0.0146 | O24: 0.0127 | P24: 0.0167 | Q24: 0.0124 | R24: 0.0148 | S24: 0.017 | T24: 0.0142 | U24: 0.0138 | V24: 0.0145 | W24: 0.0162 | X24: 0.0138 | Y24: 0.0153 | Z24: 0.0135 | AA24: 0.0142 | AB24: 0.0123 | AC24: 0.0136 | AD24: 0.0145 | AE24: 0.0121 | AF24: 0.0139 | AG24: 0.0127 | AH24: 0.013 | AI24: 0.0126 | AJ24: 0.0125 | AK24: 0.0122 | AL24: 0.0122 | AM24: 0.0578 | AN24: 0.0152 | AO24: 0.0138 | AP24: 0.0196 | AQ24: 0.0116 | AR24: 0.0089 | AS24: 0.0144 | AT24: 0.0113 | AU24: 0.0113 | AV24: 0.0114 | AW24: 0.0153 | AX24: 0
A25: Quarterly surplus income to the Issuer | B25: 1753 | C25: 1678 | D25: 785 | E25: 1024 | F25: 603 | G25: 736 | H25: 790 | I25: 1358 | J25: 1441 | K25: 1366 | L25: 1444 | M25: 1561 | N25: 1451 | O25: 1113 | P25: 1492 | Q25: 941 | R25: 1115 | S25: 1250 | T25: 929 | U25: 794 | V25: 788 | W25: 885 | X25: 724 | Y25: 790 | Z25: 626 | AA25: 607 | AB25: 410 | AC25: 476 | AD25: 440 | AE25: 271 | AF25: 362 | AG25: 232 | AH25: 260 | AI25: 233 | AJ25: 216 | AK25: 193 | AL25: 172 | AM25: 1106 | AN25: 179 | AO25: 193 | AP25: 271 | AQ25: 124 | AR25: 59 | AS25: 143 | AT25: 69 | AU25: 77 | AV25: 75 | AW25: 106 | AX25: =68+806 -> 874
A26: Surplus Income as a % of the Mortgages | B26: =B25/268600 -> 0.006526433358 | C26: =C25/B6 -> 0.007104600207 | D26: 0.003652674828 | E26: 0.005196571481 | F26: 0.003284492619 | G26: 0.004310925502 | H26: 0.004887857695 | I26: 0.008866486899 | J26: 0.009862499914 | K26: 0.009935123498 | L26: 0.01098666991 | M26: 0.01245660934 | N26: 0.01196799736 | O26: 0.009558899309 | P26: 0.01347421656 | Q26: 0.008866400957 | R26: 0.01074678078 | S26: 0.01255246932 | T26: 0.009756148789 | U26: 0.008902443126 | V26: 0.009345794393 | W26: 0.01109773531 | X26: 0.009753337554 | Y26: 0.0115527478 | Z26: 0.009795790627 | AA26: 0.01009311606 | AB26: 0.007290703464 | AC26: 0.009160892995 | AD26: 0.009219486642 | AE26: 0.006073781882 | AF26: 0.00878619451 | AG26: 0.006161527634 | AH26: 0.007383743622 | AI26: 0.007016168665 | AJ26: 0.007086788804 | AK26: 0.006853490498 | AL26: 0.006611109229 | AM26: 0.04573356838 | AN26: 0.008447241263 | AO26: 0.00970948624 | AP26: 0.01452775324 | AQ26: 0.007293011074 | AR26: 0.00369793448 | AS26: 0.009634929353 | AT26: 0.00500545785 | AU26: 0.005918032661 | AV26: 0.006052076384 | AW26: 0.009760461543 | AX26: 0
A27: Losses as a % of the Mortgages | B27: =+B18/268600 -> 0.0001265822785 | C27: =+C18/B6 -> -3.387175307e-05 | D27: 0 | E27: 5.074776837e-06 | F27: -1.089383953e-05 | G27: 0 | H27: 8.662026295e-05 | I27: -2.611630898e-05 | J27: -4.106523212e-05 | K27: 0.0001818287609 | L27: 0 | M27: 0 | N27: 0 | O27: 4.294204542e-05 | P27: -4.515488124e-05 | Q27: -9.422317702e-06 | R27: 9.638368417e-06 | S27: 0.0001205037055 | T27: 0 | U27: =+U18/T6 -> 0 | V27: =+V18/U6 -> 0 | W27: =+W18/V6 -> 0 | X27: =+X18/W6 -> 0 | Y27: =+Y18/X6 -> 0.0001608610453 | Z27: 0 | AA27: =+AA18/Z6 -> 0 | AB27: 1.778220357e-05 | AC27: 0 | AD27: 0 | AE27: 2.241247927e-05 | AF27: 0 | AG27: 7.96749263e-05 | AH27: 0.0003123891532 | AI27: 0 | AJ27: =+AJ18/AI6 -> 0 | AK27: 3.551031346e-05 | AL27: 0 | AM27: 0.006037161829 | AN27: 0.001179782299 | AO27: 0 | AP27: 5.360794554e-05 | AQ27: 0 | AR27: =+AR18/AQ6 -> 0 | AS27: =+AS18/AR6 -> 0 | AT27: =+AT18/AS6 -> 0 | AU27: 0 | AV27: 0 | AW27: 0 | AX27: 0
A28: Number of Properties in Possession | B28: =SUM(B79+B109) -> 1 | C28: 2 | D28: 2 | E28: 1 | F28: 0 | G28: 0 | H28: =SUM(H79+H109) -> 0 | I28: 2 | J28: 3 | K28: 0 | L28: 6 | M28: 4 | N28: 4 | O28: =SUM(O79+O109) -> 4 | P28: 3 | Q28: 3 | R28: 4 | S28: 3 | T28: 3 | U28: =SUM(U79+U109) -> 3 | V28: 4 | W28: 4 | X28: 2 | Y28: 3 | Z28: 1 | AA28: =SUM(AA79+AA109) -> 3 | AB28: 2 | AC28: 1 | AD28: 2 | AE28: 2 | AF28: 1 | AG28: 1 | AH28: 1 | AI28: 2 | AJ28: 1 | AK28: 1 | AL28: 1 | AM28: 1 | AN28: =SUM(AN79+AN109) -> 2 | AO28: 3 | AP28: =SUM(AP79+AP109) -> 1 | AQ28: 1 | AR28: =SUM(AR79+AR109) -> 1 | AS28: 0 | AT28: =SUM(AT79+AT109) -> 1 | AU28: 1 | AV28: =SUM(AV79+AV109) -> 1 | AW28: 0 | AX28: =SUM(AX79+AX109) -> 0
A29: Appointment of a Receiver of Rent | B29: =SUM(B80+B110) -> 0 | C29: =+C80+C110 -> 0 | D29: 0 | E29: 0 | F29: 0 | G29: 0 | H29: 0 | I29: =+I80+I110 -> 1 | J29: 2 | K29: 2 | L29: 1 | M29: 1 | N29: 0 | O29: =+O80+O110 -> 0 | P29: 0 | Q29: 0 | R29: 0 | S29: 0 | T29: 0 | U29: =+U80+U110 -> 0 | V29: 0 | W29: 0 | X29: 0 | Y29: 0 | Z29: 0 | AA29: =+AA80+AA110 -> 0 | AB29: 0 | AC29: 0 | AD29: 0 | AE29: 0 | AF29: 0 | AG29: 0 | AH29: 0 | AI29: 0 | AJ29: 0 | AK29: 0 | AL29: 0 | AM29: 0 | AN29: =+AN80+AN110 -> 0 | AO29: 0 | AP29: =+AP80+AP110 -> 0 | AQ29: 0 | AR29: =+AR80+AR110 -> 0 | AS29: 0 | AT29: =+AT80+AT110 -> 0 | AU29: 0 | AV29: =+AV80+AV110 -> 0 | AW29: 0 | AX29: =+AX80+AX110 -> 0
A30: Average Number of months (Possessions) in Arrears at the Sale Date | B30: 7.96 | C30: 0 | D30: 0 | E30: 21.11 | F30: 21.4 | G30: 0 | H30: 0 | I30: 0 | J30: 6.68 | K30: 22.58 | L30: 0 | M30: 5.86 | N30: 12.24 | O30: 11.57 | P30: 7.43 | Q30: 0 | R30: 20.24 | S30: 22.81 | T30: 0 | U30: 20.14 | V30: 11.81 | W30: 23.28 | X30: 4.56 | Y30: 0 | Z30: 4.3 | AA30: 13.8 | AB30: 12.27 | AC30: 27.52 | AD30: 0 | AE30: 0 | AF30: 11.45 | AG30: 0 | AH30: 0 | AI30: 0 | AJ30: 0 | AK30: 0 | AL30: 0 | AM30: 39.94 | AN30: 0 | AO30: 14.77 | AP30: 14.47 | AQ30: 0 | AR30: 0 | AS30: 5.7 | AT30: 0 | AU30: 0 | AV30: 0 | AW30: 17.74 | AX30: 0
A31: Average Number of months (RoR) in Arrears at the Sale Date | B31: 0 | C31: 0 | D31: 0 | E31: 0 | F31: 0 | G31: 0 | H31: 0 | I31: 0 | J31: 0 | K31: 0 | L31: 0 | M31: 0 | N31: 0 | O31: 0 | P31: 0 | Q31: 0 | R31: 0 | S31: 0 | T31: 0 | U31: 0 | V31: 0 | W31: 0 | X31: 0 | Y31: 0 | Z31: 0 | AA31: 0 | AB31: 0 | AC31: 0 | AD31: 0 | AE31: 0 | AF31: 0 | AG31: 0 | AH31: 0 | AI31: 0 | AJ31: 0 | AK31: 0 | AL31: 0 | AM31: 0 | AN31: 0 | AO31: 0 | AP31: 0 | AQ31: 0 | AR31: 0 | AS31: 0 | AT31: 0 | AU31: 0 | AV31: 0 | AW31: 0 | AX31: 0
A32: Arrears excluding Receiver of Rent and Possession Cases
A33: Performing Loans | B33: 0.9053 | C33: 0.9061 | D33: 0.9008 | E33: 0.8936 | F33: 0.8978 | G33: 0.8915 | H33: 0.8975 | I33: 0.8834 | J33: 0.9017 | K33: 0.9081 | L33: 0.9115 | M33: 0.9124 | N33: 0.902 | O33: 0.9139 | P33: 0.9117 | Q33: 0.898 | R33: 0.8997 | S33: 0.9066 | T33: 0.9105 | U33: 0.9023 | V33: 0.9182 | W33: 0.9098 | X33: 0.9099 | Y33: 0.9073 | Z33: 0.9092 | AA33: 0.9304 | AB33: 0.9361 | AC33: 0.9376 | AD33: 0.9322 | AE33: 0.9393580313 | AF33: 0.9512643419 | AG33: 0.9539904758 | AH33: 0.9446708691 | AI33: 0.945613525 | AJ33: 0.9545043317 | AK33: 0.9361802168 | AL33: 0.946098865 | AM33: 0.9511296062 | AN33: 0.9607230924 | AO33: 0.9649621505 | AP33: 0.9604406466 | AQ33: 0.9598241976 | AR33: 0.9519677315 | AS33: 0.93675664 | AT33: 0.9566011969 | AU33: 0.9565976322 | AV33: 0.9353967466 | AW33: 0.9213596489 | AX33: 0
A34: >1 to 2 months arrears | B34: 0.0335 | C34: 0.0372 | D34: 0.0393 | E34: 0.048 | F34: 0.0424 | G34: 0.0372 | H34: 0.039 | I34: 0.0426 | J34: 0.0279 | K34: 0.024 | L34: 0.0289 | M34: 0.0239 | N34: 0.0328 | O34: 0.0216 | P34: 0.0268 | Q34: 0.0295 | R34: 0.025 | S34: 0.0248 | T34: 0.0228 | U34: 0.0345 | V34: 0.0103 | W34: 0.0185 | X34: 0.0147 | Y34: 0.0188 | Z34: 0.0147 | AA34: 0.0125 | AB34: 0.0159 | AC34: 0.0134 | AD34: 0.0166 | AE34: 0.01993410037 | AF34: 0.009330356782 | AG34: 0.01004028227 | AH34: 0.01795032832 | AI34: 0.01588234338 | AJ34: 0.01339669862 | AK34: 0.02718451508 | AL34: 0.01412146109 | AM34: 0.02432850453 | AN34: 0.01215076764 | AO34: 0.002159530549 | AP34: 0.01459781965 | AQ34: 0.01189927773 | AR34: 0.006669258124 | AS34: 0.02462998865 | AT34: 0.01664428249 | AU34: 0.0002453034055 | AV34: 0.01555887389 | AW34: 0.0267756055 | AX34: 0
A35: >2 to 3 months arrears | B35: 0.0175 | C35: 0.0143 | D35: 0.0152 | E35: 0.0146 | F35: 0.0154 | G35: 0.0279 | H35: 0.0182 | I35: 0.0167 | J35: 0.0115 | K35: 0.0103 | L35: 0.0106 | M35: 0.0142 | N35: 0.0123 | O35: 0.014 | P35: 0.0086 | Q35: 0.0171 | R35: 0.0189 | S35: 0.0113 | T35: 0.0146 | U35: 0.0124 | V35: 0.0178 | W35: 0.0147 | X35: 0.0175 | Y35: 0.016 | Z35: 0.0124 | AA35: 0.0132 | AB35: 0.0124 | AC35: 0.0157 | AD35: 0.0196 | AE35: 0.01079775724 | AF35: 0.01124534194 | AG35: 0.00836661957 | AH35: 0.01152600522 | AI35: 0.01220393517 | AJ35: 0.009544835454 | AK35: 0.01085556195 | AL35: 0.01250579591 | AM35: 0.007806029088 | AN35: 0.007765059569 | AO35: 0.01223499152 | AP35: 0.003974662706 | AQ35: 0.005309086219 | AR35: 0.01548904849 | AS35: 0.005718581802 | AT35: 0.01102383814 | AU35: 0.0020791581 | AV35: 0.005394993067 | AW35: 0.005296587972 | AX35: 0
A36: >3 months arrears | B36: 0.0437 | C36: 0.0424 | D36: 0.0447 | E36: 0.0438 | F36: 0.0444 | G36: 0.0434 | H36: 0.0453 | I36: 0.0573 | J36: 0.0589 | K36: 0.0576 | L36: 0.049 | M36: 0.0495 | N36: 0.0529 | O36: 0.0505 | P36: 0.0529 | Q36: 0.0554 | R36: 0.0564 | S36: 0.0573 | T36: 0.0521 | U36: 0.0508 | V36: 0.0537 | W36: 0.057 | X36: 0.0579 | Y36: 0.0579 | Z36: 0.0637 | AA36: 0.0439 | AB36: 0.0356 | AC36: 0.0333 | AD36: 0.0316 | AE36: 0.02991011112 | AF36: 0.02815995933 | AG36: 0.02760262233 | AH36: 0.02585279737 | AI36: 0.02630019643 | AJ36: 0.02255413419 | AK36: 0.0257797062 | AL36: 0.02727387801 | AM36: 0.01673586019 | AN36: 0.01936108036 | AO36: 0.02064332741 | AP36: 0.02098687102 | AQ36: 0.02296743847 | AR36: 0.02587396192 | AS36: 0.03289478955 | AT36: 0.01573068247 | AU36: 0.04107790633 | AV36: 0.04364938641 | AW36: 0.04656815761 | AX36: 0
A37: Total | B37: =SUM(B33:B36) -> 1 | C37: 1 | D37: 1 | E37: 1 | F37: 1 | G37: 1 | H37: 1 | I37: 1 | J37: 1 | K37: 1 | L37: 1 | M37: 1 | N37: 1 | O37: 1 | P37: 1 | Q37: 1 | R37: 1 | S37: 1 | T37: 1 | U37: =SUM(U33:U36) -> 1 | V37: 1 | W37: 1 | X37: 1 | Y37: 1 | Z37: 1 | AA37: =SUM(AA33:AA36) -> 1 | AB37: =SUM(AB33:AB36) -> 1 | AC37: =SUM(AC33:AC36) -> 1 | AD37: =SUM(AD33:AD36) -> 1 | AE37: =SUM(AE33:AE36) -> 1 | AF37: 1 | AG37: 1 | AH37: 1 | AI37: 1 | AJ37: =SUM(AJ33:AJ36) -> 1 | AK37: 1 | AL37: 1 | AM37: 1 | AN37: 1 | AO37: 1 | AP37: 1 | AQ37: 1 | AR37: 1 | AS37: 1 | AT37: 1 | AU37: 1 | AV37: =SUM(AV33:AV36) -> 1 | AW37: 1 | AX37: =SUM(AX33:AX36) -> 0
A39: Underlying Assets - Overall | B39: 2007-05-31 | C39: 2007-08-31 | D39: 2007-11-30 | E39: 2008-02-29 | F39: 2008-05-30 | G39: 2008-08-31 | H39: 2008-11-28 | I39: 2009-02-27 | J39: 2009-05-29 | K39: 2009-08-28 | L39: 2009-11-30 | M39: 2010-02-26 | N39: 2010-05-28 | O39: 2010-08-31 | P39: 2010-11-30 | Q39: 2011-02-28 | R39: 2011-05-31 | S39: 2011-08-31 | T39: 2011-11-30 | U39: 2012-02-29 | V39: 2012-05-31 | W39: 2012-08-31 | X39: 2012-11-30 | Y39: 2013-02-28 | Z39: 2013-05-31 | AA39: 2013-08-30 | AB39: 2013-11-29 | AC39: 2014-02-28 | AD39: 2014-05-30 | AE39: 2014-08-29 | AF39: 2014-11-28 | AG39: 2015-02-27 | AH39: =+AH5 -> 2015-05-29 | AI39: 2015-08-28 | AJ39: 2015-11-30 | AK39: 2016-02-29 | AL39: 2016-05-31 | AM39: 2016-08-31 | AN39: =+AN5 -> 2016-11-30 | AO39: 2017-02-28 | AP39: =+AP5 -> 2017-05-31 | AQ39: 2017-08-31 | AR39: =+AR5 -> 2017-11-30 | AS39: 2018-02-28 | AT39: =+AT5 -> 2018-05-31 | AU39: 2018-08-31 | AV39: =+AV5 -> 2018-11-30 | AW39: 2019-02-28 | AX39: =+AX5 -> 2019-05-31
A40: Weighted Average LTV | B40: 0.5691 | C40: 0.5661 | D40: 0.5641 | E40: 0.5613 | F40: 0.5606 | G40: 0.5607 | H40: 0.5568 | I40: 0.5582 | J40: 0.5571 | K40: 0.5561 | L40: 0.5551 | M40: 0.5549 | N40: 0.5559 | O40: 0.5527 | P40: 0.5529 | Q40: 0.554 | R40: 0.5534 | S40: 0.5515 | T40: 0.5485 | U40: 0.5474 | V40: 0.5485 | W40: 0.5466 | X40: 0.5438 | Y40: 0.5395 | Z40: 0.5384 | AA40: 0.539 | AB40: 0.5425 | AC40: 0.541 | AD40: 0.5403 | AE40: 0.5400522799 | AF40: 0.5389752713 | AG40: 0.5385295222 | AH40: 0.537862488 | AI40: 0.5374905081 | AJ40: 0.5354089635 | AK40: 0.5281034532 | AL40: 0.5265249743 | AM40: 0.5085901499 | AN40: 0.5011249366 | AO40: 0.4962223859 | AP40: 0.489377601 | AQ40: 0.4880505108 | AR40: 0.4897772972 | AS40: 0.4875277181 | AT40: 0.4940894144 | AU40: 0.4971869135 | AV40: 0.4975361148 | AW40: 0.4911241219 | AX40: 0
A41: Weighted Average Nationwide Indexed LTV | B41: 0.2648 | C41: 0.2559 | D41: 0.2513 | E41: 0.2528 | F41: 0.2567 | G41: 0.2646 | H41: 0.2823 | I41: 0.3041 | J41: 0.3131 | K41: 0.2905 | L41: 0.2786 | M41: 0.2754 | N41: 0.2731 | O41: 0.2663 | P41: 0.264 | Q41: 0.2724 | R41: 0.2738 | S41: 0.2675 | T41: 0.27 | U41: 0.2719 | V41: 0.2777 | W41: 0.2742 | X41: 0.2764 | Y41: 0.2816 | Z41: 0.2832 | AA41: 0.2817 | AB41: 0.2812 | AC41: 0.2766 | AD41: 0.2737 | AE41: 0.2632230016 | AF41: 0.2576029353 | AG41: 0.2571927164 | AH41: 0.2571627065 | AI41: 0.2519287297 | AJ41: 0.2519031257 | AK41: 0.2481644119 | AL41: 0.2470404919 | AM41: 0.2388479392 | AN41: 0.2350680187 | AO41: 0.2367698846 | AP41: 0.2347273028 | AQ41: 0.2312538669 | AR41: 0.2287909491 | AS41: 0.2331476004 | AT41: 0.2336298004 | AU41: 0.2338820749 | AV41: 0.2258028741 | AW41: 0.228104167 | AX41: 0
A42: Weighted Average Halifax Indexed LTV | B42: 0.2665 | C42: 0.2527 | D42: 0.2481 | E42: 0.2456 | F42: 0.2501 | G42: 0.258 | H42: 0.2805 | I42: 0.2889 | J42: 0.3025 | K42: 0.3102 | L42: 0.3002 | M42: 0.2965 | N42: 0.295 | O42: 0.2868 | P42: 0.2917 | Q42: 0.295 | R42: 0.3015 | S42: 0.2998 | T42: 0.2993 | U42: 0.3001 | V42: 0.3031 | W42: 0.3026 | X42: 0.3032 | Y42: 0.3089 | Z42: 0.3052 | AA42: 0.3033 | AB42: 0.3039 | AC42: 0.3024 | AD42: 0.2955 | AE42: 0.2898565252 | AF42: 0.2758721372 | AG42: 0.2768311294 | AH42: 0.2719006015 | AI42: 0.2612691235 | AJ42: 0.2576692762 | AK42: 0.2553245108 | AL42: 0.2447298301 | AM42: 0.2388971674 | AN42: n/a | AO42: n/a | AP42: n/a | AQ42: n/a | AR42: n/a | AS42: n/a | AT42: n/a | AU42: n/a | AV42: n/a | AW42: n/a | AX42: n/a
A43: % of Variable Rate Mortgages | B43: 0.7405 | C43: 0.7469 | D43: 0.7533 | E43: 0.7604 | F43: 0.7658 | G43: 0.7693 | H43: 0.7683 | I43: 0.7673 | J43: 0.7622 | K43: 0.7707 | L43: 0.7691 | M43: 0.7653 | N43: 0.764 | O43: 0.7634 | P43: 0.7638 | Q43: 0.7628 | R43: 0.7609 | S43: 0.7581 | T43: 0.7501 | U43: 0.7496 | V43: 0.7432 | W43: 0.7399 | X43: 0.7308 | Y43: 0.7178 | Z43: 0.7121 | AA43: 0.6957 | AB43: 0.6743 | AC43: 0.6646 | AD43: 0.6554 | AE43: 0.6508783934 | AF43: 0.6452898075 | AG43: 0.6331928943 | AH43: 0.6318274361 | AI43: 0.6226954575 | AJ43: 0.6171768368 | AK43: 0.6056129894 | AL43: 0.5912400001 | AM43: 0.5636331409 | AN43: 0.5598530048 | AO43: 0.5423257969 | AP43: 0.5297393188 | AQ43: 0.5201371436 | AR43: 0.5286233359 | AS43: 0.5115423167 | AT43: 0.5149950677 | AU43: 0.5163385961 | AV43: 0.5516268255 | AW43: 0.5465097142 | AX43: 0
A44: % of Fixed Rate Mortgages | B44: 0.0004 | C44: 0.0005 | D44: 0.0005 | E44: 0.0004 | F44: 0.0004 | G44: 0.0004 | H44: 0.0004 | I44: 0.0003 | J44: 0.0002 | K44: 0.001 | L44: 0.001 | M44: 0.0008 | N44: 0.0009 | O44: 0.0008 | P44: 0.0008 | Q44: 0.0008 | R44: 0.0009 | S44: 0.0009 | T44: 0.0009 | U44: 0.001 | V44: 0.001 | W44: 0.0011 | X44: 0.0011 | Y44: 0.0012 | Z44: 0.0012 | AA44: 0.0004 | AB44: 0.0004 | AC44: 0.0004 | AD44: 0.0005 | AE44: 0.0004684703038 | AF44: 0.0004900729985 | AG44: 0.0004997036533 | AH44: 0.0005037807843 | AI44: 0.0005202103254 | AJ44: 0.0005316749723 | AK44: 0.0005411392775 | AL44: 0.0005448075426 | AM44: 0.0005787138922 | AN44: 0.0005705933029 | AO44: 0.000558240444 | AP44: 0.000557350727 | AQ44: 0.0005346329515 | AR44: 0.0005103211078 | AS44: 0.0004794075188 | AT44: 0.0004329717238 | AU44: 0.0003751052734 | AV44: 0.0003364256142 | AW44: 0.0002635021389 | AX44: 0
A45: % of Base Rate Mortgages | B45: 0.165 | C45: 0.163 | D45: 0.159 | E45: 0.1556 | F45: 0.1518 | G45: 0.1511 | H45: 0.1508 | I45: 0.1506 | J45: 0.1538 | K45: 0.1643 | L45: 0.1663 | M45: 0.1684 | N45: 0.1695 | O45: 0.1709 | P45: 0.172 | Q45: 0.1712 | R45: 0.1714 | S45: 0.1751 | T45: 0.1811 | U45: 0.1802 | V45: 0.1849 | W45: 0.1836 | X45: 0.1848 | Y45: 0.1959 | Z45: 0.1983 | AA45: 0.2054 | AB45: 0.2212 | AC45: 0.223 | AD45: 0.2278 | AE45: 0.2300536542 | AF45: 0.2273973424 | AG45: 0.2354085505 | AH45: 0.2321068056 | AI45: 0.2391113396 | AJ45: 0.2354085807 | AK45: 0.2387814857 | AL45: 0.2432891957 | AM45: 0.2674751868 | AN45: 0.2720180431 | AO45: 0.2823902976 | AP45: 0.3009282165 | AQ45: 0.309971888 | AR45: 0.3091015192 | AS45: 0.3162332883 | AT45: 0.3036763854 | AU45: 0.3010304916 | AV45: 0.3155683246 | AW45: 0.33115823 | AX45: 0
A46: % of Libor Linked Mortgages | B46: 0.0941 | C46: 0.0897 | D46: 0.0872 | E46: 0.0837 | F46: 0.082 | G46: 0.0792 | H46: 0.0804 | I46: 0.0819 | J46: 0.0837 | K46: 0.064 | L46: 0.0637 | M46: 0.0655 | N46: 0.0657 | O46: 0.0649 | P46: 0.0633 | Q46: 0.0651 | R46: 0.0668 | S46: 0.0659 | T46: 0.0679 | U46: 0.0693 | V46: 0.0709 | W46: 0.0754 | X46: 0.0833 | Y46: 0.0852 | Z46: 0.0884 | AA46: 0.0985 | AB46: 0.1041 | AC46: 0.1119 | AD46: 0.1164 | AE46: 0.1185994822 | AF46: 0.1268227771 | AG46: 0.1308988516 | AH46: 0.1355619775 | AI46: 0.1376729926 | AJ46: 0.1468829075 | AK46: 0.1550643857 | AL46: 0.1649259966 | AM46: 0.1683129584 | AN46: 0.1675583588 | AO46: 0.1747256651 | AP46: 0.168775114 | AQ46: 0.1693563355 | AR46: 0.1617648237 | AS46: 0.1717449875 | AT46: 0.1808955751 | AU46: 0.182255807 | AV46: 0.1324684242 | AW46: 0.1220685536 | AX46: 0
A47: Weighted Average Loan Size | B47: 45745.77 | C47: 44847.86 | D47: 44044.03 | E47: 43268.91 | F47: 42853.63 | G47: 42667.77 | H47: 42462.12 | I47: 42082.2 | J47: 41413.37 | K47: 41201.34 | L47: 40899.29 | M47: 40794.15 | N47: 40769.17 | O47: 40471.87 | P47: 40430.98 | Q47: 40386.17 | R47: 40025.11 | S47: 40161.1 | T47: 40357.12 | U47: 40517.28 | V47: 40275.64 | W47: 39973.7 | X47: 39803.25 | Y47: 39965.75 | Z47: 39880.85 | AA47: 41259.58 | AB47: 42625.68 | AC47: 42198 | AD47: 42173.19 | AE47: 42651.50335 | AF47: 42070.9642 | AG47: 41671.58605 | AH47: 41151.18688 | AI47: 40747.65898 | AJ47: 40931.44302 | AK47: 40778.70553 | AL47: 41695.77445 | AM47: 38668.52214 | AN47: 38447.71333 | AO47: 37991.75397 | AP47: 36881.95102 | AQ47: 36509.96046 | AR47: 36737.2072 | AS47: 35712.31285 | AT47: 35646.79619 | AU47: 36024.53802 | AV47: 33832.2186 | AW47: 32531.68388 | AX47: 0
A48: Weighted Average Interest Rate | B48: 0.07568 | C48: 0.08058 | D48: 0.08127 | E48: 0.07892 | F48: 0.07783 | G48: 0.07794 | H48: 0.07727 | I48: 0.06294 | J48: 0.05431 | K48: 0.05399 | L48: 0.05364 | M48: 0.05351 | N48: 0.05349 | O48: 0.05354 | P48: 0.05357 | Q48: 0.05356 | R48: 0.05355 | S48: 0.05346 | T48: 0.05322 | U48: 0.05328 | V48: 0.05307 | W48: 0.05287 | X48: 0.05231 | Y48: 0.05173 | Z48: 0.05152 | AA48: 0.05073 | AB48: 0.04976 | AC48: 0.04923 | AD48: 0.04877 | AE48: 0.04878727927 | AF48: 0.04857023843 | AG48: 0.04802151254 | AH48: 0.04795027572 | AI48: 0.04741698075 | AJ48: 0.04711516621 | AK48: 0.04662261006 | AL48: 0.04591257072 | AM48: 0.04435746841 | AN48: 0.0418629784 | AO48: 0.04110607942 | AP48: 0.04050710637 | AQ48: 0.0400079566 | AR48: 0.04041160021 | AS48: 0.04209333302 | AT48: 0.04205194566 | AU48: 0.04200315865 | AV48: 0.04495171675 | AW48: 0.04499424394 | AX48: 0
A49: Weighted Average Maturity Date (years) | B49: 9.46 | C49: 9.13 | D49: 8.83 | E49: 8.48 | F49: 8.21 | G49: 8 | H49: 7.8 | I49: 7.55 | J49: 7.29 | K49: 7.05 | L49: 6.87 | M49: 6.65 | N49: 6.44 | O49: 6.21 | P49: 6.03 | Q49: 5.81 | R49: 5.62 | S49: 5.45 | T49: 5.37 | U49: 5.28 | V49: 5.13 | W49: 5.04 | X49: 5 | Y49: 4.97 | Z49: 4.87 | AA49: 4.93 | AB49: 4.9 | AC49: 4.8 | AD49: 4.84 | AE49: 4.838366626 | AF49: 4.826347504 | AG49: 4.705023496 | AH49: 4.529608124 | AI49: 4.561180956 | AJ49: 4.538550653 | AK49: 4.484663159 | AL49: 4.449880782 | AM49: 4.690594269 | AN49: 4.631483558 | AO49: 4.503283038 | AP49: 4.566440923 | AQ49: 4.446573742 | AR49: 4.325120201 | AS49: 4.251425961 | AT49: 4.096534437 | AU49: 3.966970746 | AV49: 4.008103967 | AW49: 4.121868836 | AX49: 0
A50: Weighted Average Seasoning (years) | B50: 11.67 | C50: 12.04 | D50: 12.42 | E50: 12.82 | F50: 13.16 | G50: 13.46 | H50: 13.76 | I50: 14.05 | J50: 14.36 | K50: 14.64 | L50: 14.89 | M50: 15.15 | N50: 15.43 | O50: 15.75 | P50: 16.01 | Q50: 16.24 | R50: 16.52 | S50: 16.74 | T50: 16.86 | U50: 17.03 | V50: 17.23 | W50: 17.4 | X50: 17.42 | Y50: 17.47 | Z50: 17.59 | AA50: 17.46 | AB50: 17.42 | AC50: 17.51 | AD50: 17.59 | AE50: 17.66778377 | AF50: 17.73040863 | AG50: 17.81491329 | AH50: 17.94784753 | AI50: 17.93668523 | AJ50: 18.04990661 | AK50: 18.14791026 | AL50: 18.17939392 | AM50: 17.85929965 | AN50: 17.98368335 | AO50: 18.0838244 | AP50: 18.11403801 | AQ50: 18.26094669 | AR50: 18.57822884 | AS50: 18.67744526 | AT50: 18.90720245 | AU50: 19.08168963 | AV50: 19.63593612 | AW50: 19.79281372 | AX50: 0
A51: % of Interest Only Mortgages | B51: 0.7116 | C51: 0.7141 | D51: 0.7212 | E51: 0.7259 | F51: 0.7367 | G51: 0.7391 | H51: 0.7396 | I51: 0.746 | J51: 0.7499 | K51: 0.7555 | L51: 0.7556 | M51: 0.7613 | N51: 0.7661 | O51: 0.77 | P51: 0.7732 | Q51: 0.7781 | R51: 0.7824 | S51: 0.7845 | T51: 0.7844 | U51: 0.7824 | V51: 0.7873 | W51: 0.7831 | X51: 0.7748 | Y51: 0.7647 | Z51: 0.7641 | AA51: 0.7555 | AB51: 0.7494 | AC51: 0.7446 | AD51: 0.7405 | AE51: 0.73785069 | AF51: 0.729901479 | AG51: 0.7275970781 | AH51: 0.7280662894 | AI51: 0.7265617781 | AJ51: 0.7306394522 | AK51: 0.7229330073 | AL51: 0.7200779381 | AM51: 0.7002003378 | AN51: 0.696302542 | AO51: 0.6962546675 | AP51: 0.683836157 | AQ51: 0.6914364434 | AR51: 0.6931517929 | AS51: 0.6884230969 | AT51: 0.697850467 | AU51: 0.7040936756 | AV51: 0.6953026868 | AW51: 0.6879803647 | AX51: 0
A52: % of Repayment Mortgages | B52: 0.2884 | C52: 0.2859 | D52: 0.2788 | E52: 0.2741 | F52: 0.2633 | G52: 0.2609 | H52: 0.2604 | I52: 0.254 | J52: 0.2501 | K52: 0.2445 | L52: 0.2444 | M52: 0.2387 | N52: 0.2339 | O52: 0.23 | P52: 0.2268 | Q52: 0.2219 | R52: 0.2176 | S52: 0.2155 | T52: 0.2156 | U52: 0.2176 | V52: 0.2127 | W52: 0.2169 | X52: 0.2252 | Y52: 0.2353 | Z52: 0.2359 | AA52: 0.2445 | AB52: 0.2506 | AC52: 0.2554 | AD52: 0.2595 | AE52: 0.26214931 | AF52: 0.270098521 | AG52: 0.2724029219 | AH52: 0.2719337106 | AI52: 0.2734382219 | AJ52: 0.2693605478 | AK52: 0.2770669927 | AL52: 0.2799220619 | AM52: 0.2997996622 | AN52: 0.303697458 | AO52: 0.3037453325 | AP52: 0.316163843 | AQ52: 0.3085635566 | AR52: 0.3068482071 | AS52: 0.3115769031 | AT52: 0.302149533 | AU52: 0.2959063244 | AV52: 0.3046973132 | AW52: 0.3120196353 | AX52: 0
A53: % of Mortgages in London | B53: 0.1125 | C53: 0.1095 | D53: 0.1115 | E53: 0.114 | F53: 0.1168 | G53: 0.1187 | H53: 0.118 | I53: 0.1181 | J53: 0.118 | K53: 0.1188 | L53: 0.1192 | M53: 0.1202 | N53: 0.1193 | O53: 0.1206 | P53: 0.1222 | Q53: 0.1233 | R53: 0.124 | S53: 0.1239 | T53: 0.1236 | U53: 0.1253 | V53: 0.1243 | W53: 0.1249 | X53: 0.1264 | Y53: 0.129 | Z53: 0.1237 | AA53: 0.1267 | AB53: 0.1276 | AC53: 0.1232 | AD53: 0.1183 | AE53: 0.1203528217 | AF53: 0.125003755 | AG53: 0.1203322073 | AH53: 0.1203865883 | AI53: 0.1209772065 | AJ53: 0.1172500147 | AK53: 0.1219102917 | AL53: 0.1223950843 | AM53: 0.1328111241 | AN53: 0.1349832714 | AO53: 0.1407928493 | AP53: 0.1210878161 | AQ53: 0.1271561509 | AR53: 0.1309155364 | AS53: 0.1104854856 | AT53: 0.1109471176 | AU53: 0.1143279037 | AV53: 0.11754551 | AW53: 0.1132408798 | AX53: 0
A54: % of Mortgages in the South East | B54: 0.3626 | C54: 0.3676 | D54: 0.3651 | E54: 0.3616 | F54: 0.3632 | G54: 0.3614 | H54: 0.3612 | I54: 0.3622 | J54: 0.361 | K54: 0.3618 | L54: 0.3653 | M54: 0.37 | N54: 0.3732 | O54: 0.3729 | P54: 0.3733 | Q54: 0.3725 | R54: 0.3744 | S54: 0.3762 | T54: 0.3767 | U54: 0.3762 | V54: 0.3771 | W54: 0.373 | X54: 0.3663 | Y54: 0.3616 | Z54: 0.366 | AA54: 0.3516 | AB54: 0.3485 | AC54: 0.3425 | AD54: 0.3482 | AE54: 0.3442909574 | AF54: 0.3356517806 | AG54: 0.3398869563 | AH54: 0.339388999 | AI54: 0.3387371863 | AJ54: 0.3537805849 | AK54: 0.3461364872 | AL54: 0.3513425621 | AM54: 0.3068770544 | AN54: 0.3102381996 | AO54: 0.3067934374 | AP54: 0.3215633131 | AQ54: 0.3162257934 | AR54: 0.3108961374 | AS54: 0.324714206 | AT54: 0.3291642722 | AU54: 0.3221534889 | AV54: 0.2819730987 | AW54: 0.2676566677 | AX54: 0
A55: % of Owner Occupied Mortgages | B55: 0.9721 | C55: 0.9733 | D55: 0.9746 | E55: 0.973 | F55: 0.9728 | G55: 0.9728 | H55: 0.9723 | I55: 0.9714 | J55: 0.9699 | K55: 0.9701 | L55: 0.969 | M55: 0.9686 | N55: 0.9691 | O55: 0.9702 | P55: 0.9703 | Q55: 0.9699 | R55: 0.9688 | S55: 0.9704 | T55: 0.9687 | U55: 0.9672 | V55: 0.9656 | W55: 0.9635 | X55: 0.9614 | Y55: 0.9599 | Z55: 0.958 | AA55: 0.9554 | AB55: 0.9523 | AC55: 0.9489 | AD55: 0.9458 | AE55: 0.9420465669 | AF55: 0.9375277894 | AG55: 0.9338287237 | AH55: 0.9309118531 | AI55: 0.9254301096 | AJ55: 0.9203334711 | AK55: 0.9162519066 | AL55: 0.9110313509 | AM55: 0.9005637803 | AN55: 0.8942839504 | AO55: 0.8876516135 | AP55: 0.8770948273 | AQ55: 0.869405237 | AR55: 0.8725664367 | AS55: 0.8631853752 | AT55: 0.8554615503 | AU55: 0.8486831297 | AV55: 0.9022348793 | AW55: 0.8949216083 | AX55: 0
A56: % of Commerical Mortgages | B56: 0.0279 | C56: 0.0267 | D56: 0.0254 | E56: 0.027 | F56: 0.0272 | G56: 0.0272 | H56: 0.0277 | I56: 0.0286 | J56: 0.0301 | K56: 0.0299 | L56: 0.031 | M56: 0.0314 | N56: 0.0309 | O56: 0.0298 | P56: 0.0297 | Q56: 0.0301 | R56: 0.0312 | S56: 0.0296 | T56: 0.0313 | U56: 0.0328 | V56: 0.0344 | W56: 0.0365 | X56: 0.0386 | Y56: 0.0401 | Z56: 0.042 | AA56: 0.0446 | AB56: 0.0477 | AC56: 0.0511 | AD56: 0.0542 | AE56: 0.05795343308 | AF56: 0.06247221056 | AG56: 0.06617127633 | AH56: 0.0690881469 | AI56: 0.07456989035 | AJ56: 0.0796665289 | AK56: 0.08374809341 | AL56: 0.08896864906 | AM56: 0.09943621965 | AN56: 0.1057160496 | AO56: 0.1123483865 | AP56: 0.1229051727 | AQ56: 0.130594763 | AR56: 0.1274335633 | AS56: 0.1368146248 | AT56: 0.1445384497 | AU56: 0.1513168703 | AV56: 0.09776512069 | AW56: 0.1050783917 | AX56: 0
A57: % of Paragon Originated Assets | B57: 0.0408 | C57: 0.0399 | D57: 0.04234002431 | E57: 0.0438 | F57: 0.0462 | G57: 0.0472 | H57: 0.0481 | I57: 0.0489 | J57: 0.0511 | K57: 0.051 | L57: 0.0523 | M57: 0.0527 | N57: 0.0527 | O57: 0.0531 | P57: 0.0526 | Q57: 0.0535 | R57: 0.0547 | S57: 0.0557 | T57: 0.0578 | U57: 0.0602 | V57: 0.0616 | W57: 0.0641 | X57: 0.0669 | Y57: 0.0676 | Z57: 0.0704 | AA57: 0.074 | AB57: 0.0789 | AC57: 0.084 | AD57: 0.0888 | AE57: 0.09399463511 | AF57: 0.101379724 | AG57: 0.1054416938 | AH57: 0.1095565161 | AI57: 0.1177109764 | AJ57: 0.1242412124 | AK57: 0.1310275199 | AL57: 0.1345594824 | AM57: 0.150461268 | AN57: 0.1589819958 | AO57: 0.1671411878 | AP57: 0.1743191916 | AQ57: 0.1807747186 | AR57: 0.1792539676 | AS57: 0.1902574717 | AT57: 0.1996337428 | AU57: 0.2076279761 | AV57: 0.160213212 | AW57: 0.1620391232 | AX57: 0
A58: % of Mortgage Trust Originated Assets | B58: 0.9592 | C58: 0.9601 | D58: 0.9576599757 | E58: 0.9562 | F58: 0.9538 | G58: 0.9528 | H58: 0.9519 | I58: 0.9511 | J58: 0.9489 | K58: 0.949 | L58: 0.9477 | M58: 0.9473 | N58: 0.9473 | O58: 0.9469 | P58: 0.9474 | Q58: 0.9465 | R58: 0.9453 | S58: 0.9443 | T58: 0.9422 | U58: 0.9398 | V58: 0.9384 | W58: 0.9359 | X58: 0.9331 | Y58: 0.9324 | Z58: 0.9296 | AA58: 0.926 | AB58: 0.9211 | AC58: 0.916 | AD58: 0.9112 | AE58: 0.9060053649 | AF58: 0.898620276 | AG58: 0.8945583062 | AH58: 0.8904434839 | AI58: 0.8822890236 | AJ58: 0.8757587876 | AK58: 0.8689724801 | AL58: 0.8654405176 | AM58: 0.849538732 | AN58: 0.8410180042 | AO58: 0.8328588122 | AP58: 0.8256808084 | AQ58: 0.8192252814 | AR58: 0.8207460324 | AS58: 0.8097425283 | AT58: 0.8003662572 | AU58: 0.7923720239 | AV58: 0.839786788 | AW58: 0.8379608768 | AX58: 0
A60: Underlying Assets - Paragon Originated Assets | B60: 2007-05-31 | C60: 2007-08-31 | D60: 2007-11-30 | E60: 2008-02-29 | F60: 2008-05-30 | G60: 2008-08-31 | H60: 2008-11-28 | I60: 2009-02-27 | J60: 2009-05-29 | K60: 2009-08-28 | L60: 2009-11-30 | M60: 2010-02-26 | N60: 2010-05-28 | O60: 2010-08-31 | P60: 2010-11-30 | Q60: 2011-02-28 | R60: 2011-05-31 | S60: 2011-08-31 | T60: 2011-11-30 | U60: 2012-02-29 | V60: 2012-05-31 | W60: 2012-08-31 | X60: 2012-11-30 | Y60: 2013-02-28 | Z60: 2013-05-31 | AA60: 2013-08-30 | AB60: 2013-11-29 | AC60: 2014-02-28 | AD60: 2014-05-30 | AE60: 2014-08-29 | AF60: 2014-11-28 | AG60: 2015-02-27 | AH60: =+AH39 -> 2015-05-29 | AI60: 2015-08-28 | AJ60: 2015-11-30 | AK60: 2016-02-29 | AL60: 2016-05-31 | AM60: 2016-08-31 | AN60: =+AN39 -> 2016-11-30 | AO60: 2017-02-28 | AP60: =+AP39 -> 2017-05-31 | AQ60: 2017-08-31 | AR60: =+AR39 -> 2017-11-30 | AS60: 2018-02-28 | AT60: =+AT39 -> 2018-05-31 | AU60: 2018-08-31 | AV60: =+AV39 -> 2018-11-30 | AW60: 2019-02-28 | AX60: =+AX39 -> 2019-05-31
A61: Weighted Average LTV | B61: 0.5997 | C61: 0.5875 | D61: 0.5878 | E61: 0.5891 | F61: 0.5896 | G61: 0.5843 | H61: 0.5823 | I61: 0.5823 | J61: 0.5818 | K61: 0.5776 | L61: 0.5774 | M61: 0.5744 | N61: 0.5693 | O61: 0.562 | P61: 0.5625 | Q61: 0.5618 | R61: 0.5623 | S61: 0.5641 | T61: 0.5683 | U61: 0.57 | V61: 0.5713 | W61: 0.5709 | X61: 0.5715 | Y61: 0.573 | Z61: 0.5762 | AA61: 0.5781 | AB61: 0.5786 | AC61: 0.5796 | AD61: 0.5795 | AE61: 0.5829121265 | AF61: 0.5834817463 | AG61: 0.5830923651 | AH61: 0.5839722981 | AI61: 0.5864284876 | AJ61: 0.5885343878 | AK61: 0.5867246079 | AL61: 0.5965346436 | AM61: 0.5921242525 | AN61: 0.5932413397 | AO61: 0.5963577516 | AP61: 0.5954874886 | AQ61: 0.5947076022 | AR61: 0.5878289897 | AS61: 0.5918831808 | AT61: 0.5944124779 | AU61: 0.5971091088 | AV61: 0.6009249233 | AW61: 0.5986656327 | AX61: 0
A62: Weighted Average Nationwide Indexed LTV | B62: 0.3326 | C62: 0.3072 | D62: 0.3017 | E62: 0.3115 | F62: 0.3191 | G62: 0.3237 | H62: 0.3448 | I62: 0.3746 | J62: 0.3934 | K62: 0.363 | L62: 0.3521 | M62: 0.351 | N62: 0.3403 | O62: 0.3299 | P62: 0.3274 | Q62: 0.3371 | R62: 0.3426 | S62: 0.3374 | T62: 0.3439 | U62: 0.348 | V62: 0.358 | W62: 0.359 | X62: 0.364 | Y62: 0.3791 | Z62: 0.3832 | AA62: 0.3773 | AB62: 0.3707 | AC62: 0.366 | AD62: 0.3609 | AE62: 0.3470134076 | AF62: 0.3440715133 | AG62: 0.3480636474 | AH62: 0.3508477161 | AI62: 0.3429129003 | AJ62: 0.344268738 | AK62: 0.3437359607 | AL62: 0.350945537 | AM62: 0.3386028796 | AN62: 0.3372788595 | AO62: 0.3390412544 | AP62: 0.3470531864 | AQ62: 0.3455636494 | AR62: 0.3322383991 | AS62: 0.3356096861 | AT62: 0.3374815586 | AU62: 0.3342936149 | AV62: 0.3207663836 | AW62: 0.3359789919 | AX62: 0
A63: Weighted Average Halifax Indexed LTV | B63: 0.3326 | C63: 0.3087 | D63: 0.3039 | E63: 0.3092 | F63: 0.318 | G63: 0.3235 | H63: 0.355 | I63: 0.3645 | J63: 0.3854 | K63: 0.3818 | L63: 0.3701 | M63: 0.3669 | N63: 0.3588 | O63: 0.346 | P63: 0.3569 | Q63: 0.3574 | R63: 0.3664 | S63: 0.3691 | T63: 0.3715 | U63: 0.372 | V63: 0.3816 | W63: 0.3859 | X63: 0.3917 | Y63: 0.4002 | Z63: 0.3939 | AA63: 0.3891 | AB63: 0.3844 | AC63: 0.3873 | AD63: 0.3784 | AE63: 0.366381102 | AF63: 0.353703022 | AG63: 0.3593811371 | AH63: 0.356346259 | AI63: 0.3407104726 | AJ63: 0.3376425779 | AK63: 0.3384822494 | AL63: 0.3329230662 | AM63: 0.3216315607 | AN63: n/a | AO63: n/a | AP63: n/a | AQ63: n/a | AR63: n/a | AS63: n/a | AT63: n/a | AU63: n/a | AV63: n/a | AW63: n/a | AX63: n/a
A64: % of Variable Rate Mortgages | B64: 0.563 | C64: 0.5901 | D64: 0.5951 | E64: 0.5809 | F64: 0.5734 | G64: 0.5799 | H64: 0.5822 | I64: 0.5707 | J64: 0.5641 | K64: 0.5803 | L64: 0.5723 | M64: 0.5626 | N64: 0.5726 | O64: 0.5786 | P64: 0.5786 | Q64: 0.5768 | R64: 0.5701 | S64: 0.5593 | T64: 0.5484 | U64: 0.5422 | V64: 0.5283 | W64: 0.5142 | X64: 0.4962 | Y64: 0.4784 | Z64: 0.4692 | AA64: 0.4614 | AB64: 0.4547 | AC64: 0.4447 | AD64: 0.4392 | AE64: 0.4276111148 | AF64: 0.4207523545 | AG64: 0.4059871308 | AH64: 0.3958177545 | AI64: 0.38894146 | AJ64: 0.3752578435 | AK64: 0.3608358496 | AL64: 0.338815463 | AM64: 0.3391241416 | AN64: 0.3350438894 | AO64: 0.3278234524 | AP64: 0.2949418159 | AQ64: 0.2775828165 | AR64: 0.2890893017 | AS64: 0.2808974934 | AT64: 0.2759818673 | AU64: 0.2712115525 | AV64: 0.3897811581 | AW64: 0.3515245601 | AX64: 0
A65: % of Fixed Rate Mortgages | B65: 0 | C65: 0 | D65: 0 | E65: 0 | F65: 0 | G65: 0 | H65: 0 | I65: 0 | J65: 0 | K65: 0 | L65: 0 | M65: 0 | N65: 0 | O65: 0 | P65: 0 | Q65: 0 | R65: 0 | S65: 0 | T65: 0 | U65: 0 | V65: 0 | W65: 0 | X65: 0 | Y65: 0 | Z65: 0 | AA65: 0 | AB65: 0 | AC65: 0 | AD65: 0 | AE65: 0 | AF65: 0 | AG65: 0 | AH65: 0 | AI65: 0 | AJ65: 0 | AK65: 0 | AL65: 0 | AM65: 0 | AN65: 0 | AO65: 0 | AP65: 0 | AQ65: 0 | AR65: 0 | AS65: 0 | AT65: 0 | AU65: 0 | AV65: 0 | AW65: 0 | AX65: 0
A66: % of Base Rate Mortgages | B66: 0 | C66: 0 | D66: 0 | E66: 0 | F66: 0 | G66: 0 | H66: 0 | I66: 0 | J66: 0 | K66: 0 | L66: 0 | M66: 0 | N66: 0 | O66: 0 | P66: 0 | Q66: 0 | R66: 0 | S66: 0 | T66: 0 | U66: 0 | V66: 0 | W66: 0 | X66: 0 | Y66: 0 | Z66: 0 | AA66: 0 | AB66: 0 | AC66: 0 | AD66: 0 | AE66: 0 | AF66: 0 | AG66: 0 | AH66: 0 | AI66: 0 | AJ66: 0 | AK66: 0 | AL66: 0 | AM66: 0 | AN66: 0 | AO66: 0 | AP66: 0 | AQ66: 0 | AR66: 0 | AS66: 0 | AT66: 0 | AU66: 0 | AV66: 0 | AW66: 0 | AX66: 0
A67: % of Libor Linked Mortgages | B67: 0.437 | C67: 0.4099 | D67: 0.4049 | E67: 0.4191 | F67: 0.4266 | G67: 0.4201 | H67: 0.4178 | I67: 0.4293 | J67: 0.4359 | K67: 0.4197 | L67: 0.4277 | M67: 0.4374 | N67: 0.4274 | O67: 0.4214 | P67: 0.4214 | Q67: 0.4232 | R67: 0.4299 | S67: 0.4407 | T67: 0.4516 | U67: 0.4578 | V67: 0.4717 | W67: 0.4858 | X67: 0.5038 | Y67: 0.5216 | Z67: 0.5308 | AA67: 0.5386 | AB67: 0.5453 | AC67: 0.5553 | AD67: 0.5608 | AE67: 0.5723888852 | AF67: 0.5792476455 | AG67: 0.5940128692 | AH67: 0.6041822455 | AI67: 0.61105854 | AJ67: 0.6247421565 | AK67: 0.6391641504 | AL67: 0.661184537 | AM67: 0.6608758584 | AN67: 0.6649561106 | AO67: 0.6721765476 | AP67: 0.7050581841 | AQ67: 0.7224171835 | AR67: 0.7109106983 | AS67: 0.7191025066 | AT67: 0.7240181327 | AU67: 0.7287884475 | AV67: 0.6102188419 | AW67: 0.6484754399 | AX67: 0
A68: Weighted Average Loan Size | B68: 42809.05 | C68: 40985.44 | D68: 40898.18 | E68: 41267.84 | F68: 41981.11 | G68: 41218.37 | H68: 41599.32 | I68: 42059.06 | J68: 42573.89 | K68: 41341.03 | L68: 41756.02 | M68: 41481.83 | N68: 41456.98 | O68: 40829.53 | P68: 40466.26 | Q68: 40195.23 | R68: 40351.32 | S68: 40147.41 | T68: 40304.4 | U68: 40613.72 | V68: 41297.76 | W68: 40677.33 | X68: 41211.31 | Y68: 41966.23 | Z68: 41922.61 | AA68: 43355.43 | AB68: 43592.24 | AC68: 44072.3 | AD68: 44022.49 | AE68: 45031.46593 | AF68: 44909.44412 | AG68: 44733.30855 | AH68: 44916.82963 | AI68: 44846.77687 | AJ68: 44287.79759 | AK68: 44854.1925 | AL68: 47854.79206 | AM68: 46887.16103 | AN68: 46472.93382 | AO68: 46534.97851 | AP68: 47045.64921 | AQ68: 48070.56683 | AR68: 46674.68807 | AS68: 46012.10982 | AT68: 46383.04857 | AU68: 45946.74036 | AV68: 31635.24109 | AW68: 30733.28887 | AX68: 0
A69: Weighted Average Interest Rate | B69: 0.07475 | C69: 0.07933 | D69: 0.08043 | E69: 0.07762 | F69: 0.07794 | G69: 0.07743 | H69: 0.07873 | I69: 0.05805 | J69: 0.04888 | K69: 0.04717 | L69: 0.0443 | M69: 0.04434 | N69: 0.04477 | O69: 0.04522 | P69: 0.0453 | Q69: 0.04542 | R69: 0.04552 | S69: 0.04524 | T69: 0.04544 | U69: 0.04579 | V69: 0.04516 | W69: 0.04402 | X69: 0.0419 | Y69: 0.04104 | Z69: 0.04072 | AA69: 0.04044 | AB69: 0.04022 | AC69: 0.03987 | AD69: 0.03967 | AE69: 0.04165530276 | AF69: 0.04174954527 | AG69: 0.04124986918 | AH69: 0.0409349436 | AI69: 0.04072529936 | AJ69: 0.0403030666 | AK69: 0.03985506676 | AL69: 0.0391181343 | AM69: 0.03875883149 | AN69: 0.03684161837 | AO69: 0.03634656054 | AP69: 0.03535151115 | AQ69: 0.03447607992 | AR69: 0.03516064687 | AS69: 0.03696509444 | AT69: 0.03818719242 | AU69: 0.03754429856 | AV69: 0.04181673481 | AW69: 0.04131641091 | AX69: 0
A70: Weighted Average Maturity Date (years) | B70: 11.46 | C70: 10.89 | D70: 10.72 | E70: 10.55 | F70: 10.3 | G70: 9.89 | H70: 9.72 | I70: 9.53 | J70: 9.32 | K70: 9.01 | L70: 8.78 | M70: 8.54 | N70: 8.47 | O70: 8.11 | P70: 8.19 | Q70: 7.94 | R70: 7.7 | S70: 7.51 | T70: 7.29 | U70: 7.01 | V70: 6.87 | W70: 6.71 | X70: 6.66 | Y70: 6.57 | Z70: 6.39 | AA70: 6.17 | AB70: 5.94 | AC70: 5.74 | AD70: 6.68 | AE70: 6.494112234 | AF70: 6.287577128 | AG70: 6.183130005 | AH70: 6.003202732 | AI70: 5.766114251 | AJ70: 5.605058722 | AK70: 5.454897558 | AL70: 5.3159137 | AM70: 5.098656765 | AN70: 4.856049078 | AO70: 4.617341536 | AP70: 4.37323287 | AQ70: 4.124581961 | AR70: 4.045563669 | AS70: 3.803155156 | AT70: 3.564028213 | AU70: 3.324291679 | AV70: 4.285112677 | AW70: 4.207322775 | AX70: 0
A71: Weighted Average Seasoning (years) | B71: 7.5 | C71: 7.94 | D71: 8.23 | E71: 8.38 | F71: 8.57 | G71: 8.86 | H71: 9.14 | I71: 9.31 | J71: 9.51 | K71: 9.85 | L71: 10.05 | M71: 10.21 | N71: 10.52 | O71: 10.81 | P71: 11.06 | Q71: 11.29 | R71: 11.5 | S71: 11.65 | T71: 11.81 | U71: 12.01 | V71: 12.16 | W71: 12.31 | X71: 12.42 | Y71: 12.52 | Z71: 12.69 | AA71: 12.88 | AB71: 13.07 | AC71: 13.23 | AD71: 13.44 | AE71: 13.6051831 | AF71: 13.79095654 | AG71: 13.89861698 | AH71: 14.07947217 | AI71: 14.27565264 | AJ71: 14.42457913 | AK71: 14.55415067 | AL71: 14.61905375 | AM71: 14.87406912 | AN71: 15.09117855 | AO71: 15.27739113 | AP71: 15.30111309 | AQ71: 15.42856673 | AR71: 15.76894548 | AS71: 15.95554518 | AT71: 16.16859267 | AU71: 16.38259698 | AV71: 17.53715836 | AW71: 17.42757654 | AX71: 0
A72: % of Interest Only Mortgages | B72: 0.6773 | C72: 0.6461 | D72: 0.6457 | E72: 0.6484 | F72: 0.6499 | G72: 0.6471 | H72: 0.6439 | I72: 0.646 | J72: 0.6503 | K72: 0.6433 | L72: 0.645 | M72: 0.6536 | N72: 0.6753 | O72: 0.6762 | P72: 0.6601 | Q72: 0.6644 | R72: 0.6709 | S72: 0.6843 | T72: 0.6971 | U72: 0.6965 | V72: 0.7026 | W72: 0.7003 | X72: 0.6979 | Y72: 0.6917 | Z72: 0.6949 | AA72: 0.7015 | AB72: 0.7084 | AC72: 0.7139 | AD72: 0.7189 | AE72: 0.7269894588 | AF72: 0.7313226047 | AG72: 0.7317797861 | AH72: 0.7355588238 | AI72: 0.7449550242 | AJ72: 0.7482702532 | AK72: 0.7516862877 | AL72: 0.7602841489 | AM72: 0.7624720733 | AN72: 0.7678398575 | AO72: 0.7768533711 | AP72: 0.7834245827 | AQ72: 0.7914395719 | AR72: 0.7861533665 | AS72: 0.79601706 | AT72: 0.8022506506 | AU72: 0.808474506 | AV72: 0.7290763237 | AW72: 0.7268277736 | AX72: 0
A73: % of Repayment Mortgages | B73: 0.3227 | C73: 0.3539 | D73: 0.3543 | E73: 0.3516 | F73: 0.3501 | G73: 0.3529 | H73: 0.3561 | I73: 0.354 | J73: 0.3497 | K73: 0.3567 | L73: 0.355 | M73: 0.3464 | N73: 0.3247 | O73: 0.3238 | P73: 0.3399 | Q73: 0.3356 | R73: 0.3291 | S73: 0.3157 | T73: 0.3029 | U73: 0.3035 | V73: 0.2974 | W73: 0.2997 | X73: 0.3021 | Y73: 0.3083 | Z73: 0.3051 | AA73: 0.2985 | AB73: 0.2916 | AC73: 0.2861 | AD73: 0.2811 | AE73: 0.2730105412 | AF73: 0.2686773953 | AG73: 0.2682202139 | AH73: 0.2644411762 | AI73: 0.2550449758 | AJ73: 0.2517297468 | AK73: 0.2483137123 | AL73: 0.2397158511 | AM73: 0.2375279267 | AN73: 0.2321601425 | AO73: 0.2231466289 | AP73: 0.2165754173 | AQ73: 0.2085604281 | AR73: 0.2138466335 | AS73: 0.20398294 | AT73: 0.1977493494 | AU73: 0.191525494 | AV73: 0.2709236763 | AW73: 0.2731722264 | AX73: 0
A74: % of Mortgages in London | B74: 0.2015 | C74: 0.1532 | D74: 0.1562 | E74: 0.1559 | F74: 0.1546 | G74: 0.1586 | H74: 0.1628 | I74: 0.166 | J74: 0.1673 | K74: 0.1705 | L74: 0.1676 | M74: 0.1669 | N74: 0.1719 | O74: 0.1774 | P74: 0.1849 | Q74: 0.1842 | R74: 0.18 | S74: 0.1771 | T74: 0.1688 | U74: 0.165 | V74: 0.1684 | W74: 0.1551 | X74: 0.1535 | Y74: 0.1589 | Z74: 0.1595 | AA74: 0.1595 | AB74: 0.1595 | AC74: 0.157 | AD74: 0.1559 | AE74: 0.1566468689 | AF74: 0.155841721 | AG74: 0.1571739186 | AH74: 0.1567646673 | AI74: 0.1507482248 | AJ74: 0.1506766154 | AK74: 0.1509343331 | AL74: 0.1308494472 | AM74: 0.1180591156 | AN74: 0.1158568357 | AO74: 0.1095386999 | AP74: 0.08373133976 | AQ74: 0.08269473946 | AR74: 0.08603267449 | AS74: 0.08373463438 | AT74: 0.08070364469 | AU74: 0.0776674442 | AV74: 0.1090828648 | AW74: 0.1074269348 | AX74: 0
A75: % of Mortgages in the South East | B75: 0.3898 | C75: 0.4251 | D75: 0.4162 | E75: 0.4178 | F75: 0.4167 | G75: 0.4255 | H75: 0.4195 | I75: 0.4286 | J75: 0.4272 | K75: 0.4456 | L75: 0.453 | M75: 0.4546 | N75: 0.451 | O75: 0.4611 | P75: 0.4795 | Q75: 0.4798 | R75: 0.4855 | S75: 0.4917 | T75: 0.4977 | U75: 0.5028 | V75: 0.5032 | W75: 0.5163 | X75: 0.5296 | Y75: 0.5365 | Z75: 0.5441 | AA75: 0.5458 | AB75: 0.5483 | AC75: 0.5564 | AD75: 0.557 | AE75: 0.5578391313 | AF75: 0.5619080357 | AG75: 0.5598246525 | AH75: 0.567006851 | AI75: 0.5710280434 | AJ75: 0.5808753173 | AK75: 0.5907796925 | AL75: 0.6111517641 | AM75: 0.6195596565 | AN75: 0.6205162841 | AO75: 0.6242999953 | AP75: 0.643136435 | AQ75: 0.649246803 | AR75: 0.6243921411 | AS75: 0.6237105063 | AT75: 0.6250717088 | AU75: 0.62653761 | AV75: 0.4553304897 | AW75: 0.429574763 | AX75: 0
A76: % of Owner Occupied Mortgages | B76: 0.563 | C76: 0.5901 | D76: 0.5951 | E76: 0.5809 | F76: 0.5734 | G76: 0.5799 | H76: 0.5822 | I76: 0.5707 | J76: 0.5641 | K76: 0.5803 | L76: 0.5723 | M76: 0.5626 | N76: 0.5726 | O76: 0.5786 | P76: 0.5786 | Q76: 0.5768 | R76: 0.5701 | S76: 0.5593 | T76: 0.5484 | U76: 0.5422 | V76: 0.5283 | W76: 0.5142 | X76: 0.4962 | Y76: 0.4784 | Z76: 0.4692 | AA76: 0.4614 | AB76: 0.4547 | AC76: 0.4447 | AD76: 0.4392 | AE76: 0.4276111148 | AF76: 0.4207523545 | AG76: 0.4059871308 | AH76: 0.3958177545 | AI76: 0.38894146 | AJ76: 0.3752578435 | AK76: 0.3608358496 | AL76: 0.338815463 | AM76: 0.3391241416 | AN76: 0.3350438894 | AO76: 0.3278234524 | AP76: 0.2949418159 | AQ76: 0.2775828165 | AR76: 0.2890893017 | AS76: 0.2808974934 | AT76: 0.2759818673 | AU76: 0.2712115525 | AV76: 0.3897811581 | AW76: 0.3515245601 | AX76: 0
A77: % of Commerical Mortgages | B77: 0.437 | C77: 0.4099 | D77: 0.4049 | E77: 0.4191 | F77: 0.4266 | G77: 0.4201 | H77: 0.4178 | I77: 0.4293 | J77: 0.4359 | K77: 0.4197 | L77: 0.4277 | M77: 0.4374 | N77: 0.4274 | O77: 0.4214 | P77: 0.4214 | Q77: 0.4232 | R77: 0.4299 | S77: 0.4407 | T77: 0.4516 | U77: 0.4578 | V77: 0.4717 | W77: 0.4858 | X77: 0.5038 | Y77: 0.5216 | Z77: 0.5308 | AA77: 0.5386 | AB77: 0.5453 | AC77: 0.5553 | AD77: 0.5608 | AE77: 0.5723888852 | AF77: 0.5792476455 | AG77: 0.5940128692 | AH77: 0.6041822455 | AI77: 0.61105854 | AJ77: 0.6247421565 | AK77: 0.6391641504 | AL77: 0.661184537 | AM77: 0.6608758584 | AN77: 0.6649561106 | AO77: 0.6721765476 | AP77: 0.7050581841 | AQ77: 0.7224171835 | AR77: 0.7109106983 | AS77: 0.7191025066 | AT77: 0.7240181327 | AU77: 0.7287884475 | AV77: 0.6102188419 | AW77: 0.6484754399 | AX77: 0
A78: PML Lifetime Redemption Rate | B78: 0.3051 | C78: 0.335 | D78: 0.2729 | E78: 0.2435 | F78: 0.2147 | G78: 0.2018 | H78: 0.1925 | I78: 0.1832 | J78: 0.1716 | K78: 0.1718 | L78: 0.1643 | M78: 0.1591 | N78: 0.1584 | O78: 0.1581 | P78: 0.16 | Q78: 0.1524 | R78: 0.1478 | S78: 0.1455 | T78: 0.1433 | U78: 0.1395 | V78: 0.1387 | W78: 0.1379 | X78: 0.1383 | Y78: 0.141 | Z78: 0.1387 | AA78: 0.136 | AB78: 0.1334 | AC78: 0.1316 | AD78: 0.1289 | AE78: 0.1275 | AF78: 0.1254 | AG78: 0.1247 | AH78: 0.1234 | AI78: 0.1214 | AJ78: 0.1207 | AK78: 0.1201 | AL78: 0.1215 | AM78: 0.1204 | AN78: 0.1183 | AO78: 0.1167 | AP78: 0.1184 | AQ78: 0.1181 | AR78: 0.1221 | AS78: 0.1206 | AT78: 0.1189 | AU78: 0.1172 | AV78: 0.1436 | AW78: 0.1455 | AX78: 1
A79: Number of Properties in Possession | B79: 0 | C79: 0 | D79: 0 | E79: 0 | F79: 0 | G79: 0 | H79: 0 | I79: 0 | J79: 0 | K79: 0 | L79: 0 | M79: 0 | N79: 0 | O79: 0 | P79: 0 | Q79: 0 | R79: 1 | S79: 1 | T79: 1 | U79: 1 | V79: 0 | W79: 0 | X79: 0 | Y79: 0 | Z79: 0 | AA79: 0 | AB79: 0 | AC79: 0 | AD79: 0 | AE79: 0 | AF79: 0 | AG79: 0 | AH79: 0 | AI79: 0 | AJ79: 0 | AK79: 0 | AL79: 0 | AM79: 0 | AN79: 0 | AO79: 0 | AP79: 0 | AQ79: 0 | AR79: 0 | AS79: 0 | AT79: 0 | AU79: 0 | AV79: 0 | AW79: 0 | AX79: 0
A80: Appointment of a Receiver of Rent | B80: 0 | C80: 0 | D80: 0 | E80: 0 | F80: 0 | G80: 0 | H80: 0 | I80: 1 | J80: 1 | K80: 1 | L80: 1 | M80: 1 | N80: 0 | O80: 0 | P80: 0 | Q80: 0 | R80: 0 | S80: 0 | T80: 0 | U80: 0 | V80: 0 | W80: 0 | X80: 0 | Y80: 0 | Z80: 0 | AA80: 0 | AB80: 0 | AC80: 0 | AD80: 0 | AE80: 0 | AF80: 0 | AG80: 0 | AH80: 0 | AI80: 0 | AJ80: 0 | AK80: 0 | AL80: 0 | AM80: 0 | AN80: 0 | AO80: 0 | AP80: 0 | AQ80: 0 | AR80: 0 | AS80: 0 | AT80: 0 | AU80: 0 | AV80: 0 | AW80: 0 | AX80: 0
A81: PML Quarterly Losses | B81: 0 | C81: 0 | D81: 0 | E81: 0 | F81: 0 | G81: 0 | H81: 0 | I81: 0 | J81: 0 | K81: 0 | L81: 0 | M81: 0 | N81: 0 | O81: 4 | P81: -4 | Q81: 0 | R81: 0 | S81: 0 | T81: 0 | U81: 0 | V81: 0 | W81: 0 | X81: 0 | Y81: 0 | Z81: 0 | AA81: 0 | AB81: 0 | AC81: 0 | AD81: 0 | AE81: 0 | AF81: 0 | AG81: 0 | AH81: 0 | AI81: 0 | AJ81: 0 | AK81: 0 | AL81: 0 | AM81: 0 | AN81: 0 | AO81: 0 | AP81: 0 | AQ81: 0 | AR81: 0 | AS81: 0 | AT81: 0 | AU81: 0 | AV81: 0 | AW81: 0 | AX81: 0
A82: Arrears excluding Receiver of Rent and Possession Cases
A83: Performing Loans | B83: 0.9377 | C83: 0.9586 | D83: 0.9605 | E83: 0.9468 | F83: 0.9624 | G83: 0.9681 | H83: 0.9285 | I83: 0.9001 | J83: 0.9528 | K83: 0.9496 | L83: 0.9549 | M83: 0.9528 | N83: 0.9575 | O83: 0.9465 | P83: 0.9584 | Q83: 0.9466 | R83: 0.9756 | S83: 0.9746 | T83: 0.9325 | U83: 0.9247 | V83: 0.9741 | W83: 0.9734 | X83: 0.9711 | Y83: 0.9538 | Z83: 0.9658 | AA83: 0.9549 | AB83: 0.9647 | AC83: 0.9641 | AD83: 0.9641 | AE83: 0.9694623068 | AF83: 0.9864391919 | AG83: 0.9781440859 | AH83: 0.9857718622 | AI83: 0.9830146015 | AJ83: 0.9765205178 | AK83: 0.9842057626 | AL83: 0.9749305056 | AM83: 0.966064575 | AN83: 0.9751962994 | AO83: 0.9748596591 | AP83: 0.9825344543 | AQ83: 0.982052181 | AR83: 0.9805425513 | AS83: 0.9802623624 | AT83: 0.9800705709 | AU83: 0.9798813219 | AV83: 0.9702485363 | AW83: 0.9506060821 | AX83: 0
A84: >1 to 2 months arrears | B84: 0.0434 | C84: 0.0315 | D84: 0.023 | E84: 0.0256 | F84: 0.0247 | G84: 0.0209 | H84: 0.0578 | I84: 0.0827 | J84: 0.0212 | K84: 0.0199 | L84: 0.0103 | M84: 0.0088 | N84: 0.0175 | O84: 0.0233 | P84: 0.0194 | Q84: 0.0232 | R84: 0.0072 | S84: 0.0032 | T84: 0.0493 | U84: 0.0552 | V84: 0.0033 | W84: 0 | X84: 0.0067 | Y84: 0.0019 | Z84: 0 | AA84: 0.0052 | AB84: 0 | AC84: 0 | AD84: 0.0052 | AE84: 0.00536482233 | AF84: 0 | AG84: 0.007913657805 | AH84: 0 | AI84: 0.002556906159 | AJ84: 0.008683936117 | AK84: 0.0006088617023 | AL84: 0.009161778395 | AM84: 0.01769941442 | AN84: 0 | AO84: 0 | AP84: 0 | AQ84: 0 | AR84: 0 | AS84: 0 | AT84: 0 | AU84: 0 | AV84: 0 | AW84: 0.01761367096 | AX84: 0
A85: >2 to 3 months arrears | B85: 0.0037 | C85: 0.0031 | D85: 0.0033 | E85: 0.0192 | F85: 0.0023 | G85: 0 | H85: 0.0067 | I85: 0.0074 | J85: 0.0025 | K85: 0.0058 | L85: 0.0123 | M85: 0.0092 | N85: 0.0095 | O85: 0.017 | P85: 0.0084 | Q85: 0.0131 | R85: 0 | S85: 0 | T85: 0 | U85: 0.0049 | V85: 0.0049 | W85: 0.0034 | X85: 0.0034 | Y85: 0.0195 | Z85: 0.0089 | AA85: 0.0106 | AB85: 0.0055 | AC85: 0.0055 | AD85: 0 | AE85: 0.01180606511 | AF85: 0 | AG85: 0 | AH85: 0 | AI85: 0 | AJ85: 0 | AK85: 0 | AL85: 0 | AM85: 0 | AN85: 0 | AO85: 0 | AP85: 0 | AQ85: 0 | AR85: 0 | AS85: 0 | AT85: 0 | AU85: 0 | AV85: 0 | AW85: 0 | AX85: 0
A86: >3 months arrears | B86: 0.0152 | C86: 0.0068 | D86: 0.0132 | E86: 0.0084 | F86: 0.0106 | G86: 0.011 | H86: 0.007 | I86: 0.0098 | J86: 0.0235 | K86: 0.0247 | L86: 0.0225 | M86: 0.0292 | N86: 0.0155 | O86: 0.0132 | P86: 0.0138 | Q86: 0.0171 | R86: 0.0172 | S86: 0.0222 | T86: 0.0182 | U86: 0.0152 | V86: 0.0177 | W86: 0.0232 | X86: 0.0188 | Y86: 0.0248 | Z86: 0.0253 | AA86: 0.0293 | AB86: 0.0298 | AC86: 0.0304 | AD86: 0.0307 | AE86: 0.01336680581 | AF86: 0.01356080809 | AG86: 0.0139422563 | AH86: 0.01422813776 | AI86: 0.0144284923 | AJ86: 0.01479554612 | AK86: 0.01518537566 | AL86: 0.015907716 | AM86: 0.01623601055 | AN86: 0.02480370057 | AO86: 0.02514034091 | AP86: 0.01746554571 | AQ86: 0.01794781901 | AR86: 0.01945744875 | AS86: 0.01973763764 | AT86: 0.01992942911 | AU86: 0.02011867809 | AV86: 0.02975146371 | AW86: 0.03178024694 | AX86: 0
A87: Total | B87: =SUM(B83:B86) -> 1 | C87: 1 | D87: 1 | E87: 1 | F87: 1 | G87: 1 | H87: 1 | I87: 1 | J87: 1 | K87: 1 | L87: 1 | M87: 1 | N87: 1 | O87: 1 | P87: 1 | Q87: 1 | R87: 1 | S87: 1 | T87: 1 | U87: =SUM(U83:U86) -> 1 | V87: 1 | W87: 1 | X87: 1 | Y87: 1 | Z87: 1 | AA87: =SUM(AA83:AA86) -> 1 | AB87: =SUM(AB83:AB86) -> 1 | AC87: =SUM(AC83:AC86) -> 1 | AD87: =SUM(AD83:AD86) -> 1 | AE87: =SUM(AE83:AE86) -> 1 | AF87: 1 | AG87: 1 | AH87: 1 | AI87: 1 | AJ87: 1 | AK87: 1 | AL87: 1 | AM87: 1 | AN87: 1 | AO87: 1 | AP87: 1 | AQ87: 1 | AR87: 1 | AS87: 1 | AT87: 1 | AU87: 1 | AV87: 1 | AW87: 1 | AX87: =SUM(AX83:AX86) -> 0
A89: Underlying Assets - Mortgage Trust Originated Assets | B89: 2007-05-31 | C89: 2007-08-31 | D89: 2007-11-30 | E89: 2008-02-29 | F89: 2008-05-30 | G89: 2008-08-31 | H89: 2008-11-28 | I89: 2009-02-27 | J89: 2009-05-29 | K89: 2009-08-28 | L89: 2009-11-30 | M89: 2010-02-26 | N89: 2010-05-28 | O89: 2010-08-31 | P89: 2010-11-30 | Q89: 2011-02-28 | R89: 2011-05-31 | S89: 2011-08-31 | T89: 2011-11-30 | U89: 2012-02-29 | V89: 2012-05-31 | W89: 2012-08-31 | X89: 2012-11-30 | Y89: 2013-02-28 | Z89: 2013-05-31 | AA89: 2013-08-30 | AB89: 2013-11-29 | AC89: 2014-02-28 | AD89: 2014-05-30 | AE89: 2014-08-29 | AF89: 2014-11-28 | AG89: 2015-02-27 | AH89: =+AH60 -> 2015-05-29 | AI89: 2015-08-28 | AJ89: 2015-11-30 | AK89: 2016-02-29 | AL89: 2016-05-31 | AM89: 2016-08-31 | AN89: =+AN60 -> 2016-11-30 | AO89: 2017-02-28 | AP89: =+AP60 -> 2017-05-31 | AQ89: 2017-08-31 | AR89: =+AR60 -> 2017-11-30 | AS89: 2018-02-28 | AT89: =+AT60 -> 2018-05-31 | AU89: 2018-08-31 | AV89: =+AV60 -> 2018-11-30 | AW89: 2019-02-28 | AX89: =+AX60 -> 2019-05-31
A90: Weighted Average LTV | B90: 0.5678 | C90: 0.5652 | D90: 0.5631 | E90: 0.56 | F90: 0.5592 | G90: 0.5595 | H90: 0.5555 | I90: 0.5569 | J90: 0.5558 | K90: 0.5549 | L90: 0.5539 | M90: 0.5538 | N90: 0.5552 | O90: 0.5522 | P90: 0.5523 | Q90: 0.5535 | R90: 0.5529 | S90: 0.5507 | T90: 0.5473 | U90: 0.5459 | V90: 0.547 | W90: 0.545 | X90: 0.5418 | Y90: 0.5371 | Z90: 0.5356 | AA90: 0.5359 | AB90: 0.5394 | AC90: 0.5374 | AD90: 0.5365 | AE90: 0.5356057327 | AF90: 0.5339541804 | AG90: 0.5332768946 | AH90: 0.532189326 | AI90: 0.5309614262 | AJ90: 0.5278722226 | AK90: 0.5192642958 | AL90: 0.515639807 | AM90: 0.4937954778 | AN90: 0.4837116951 | AO90: 0.4761268503 | AP90: 0.4669754939 | AQ90: 0.4645149753 | AR90: 0.4683624451 | AS90: 0.4630083112 | AT90: 0.4690660348 | AU90: 0.4710039559 | AV90: 0.4778117594 | AW90: 0.4703284827 | AX90: 0
A91: Weighted Average Nationwide Indexed LTV | B91: 0.2637 | C91: 0.2538 | D91: 0.2491 | E91: 0.2501 | F91: 0.2537 | G91: 0.2617 | H91: 0.2792 | I91: 0.3005 | J91: 0.3088 | K91: 0.2866 | L91: 0.2745 | M91: 0.2712 | N91: 0.2694 | O91: 0.2627 | P91: 0.2605 | Q91: 0.2688 | R91: 0.2699 | S91: 0.2634 | T91: 0.2654 | U91: 0.267 | V91: 0.2724 | W91: 0.2684 | X91: 0.2701 | Y91: 0.2745 | Z91: 0.2757 | AA91: 0.274 | AB91: 0.2735 | AC91: 0.2684 | AD91: 0.2652 | AE91: 0.2545300634 | AF91: 0.247847802 | AG91: 0.246481749 | AH91: 0.2456360869 | AI91: 0.2397900368 | AJ91: 0.2387994996 | AK91: 0.2337537104 | AL91: 0.2308852405 | AM91: 0.2211804047 | AN91: 0.2157465733 | AO91: 0.2162456877 | AP91: 0.2110128637 | AQ91: 0.2060296469 | AR91: 0.2061976436 | AS91: 0.2090730622 | AT91: 0.2077262657 | AU91: 0.2075708925 | AV91: 0.207685884 | AW91: 0.2072440737 | AX91: 0
A92: Weighted Average Halifax Indexed LTV | B92: 0.2619 | C92: 0.2504 | D92: 0.2456 | E92: 0.2427 | F92: 0.2468 | G92: 0.2547 | H92: 0.2767 | I92: 0.285 | J92: 0.298 | K92: 0.3064 | L92: 0.2963 | M92: 0.2926 | N92: 0.2914 | O92: 0.2834 | P92: 0.2881 | Q92: 0.2914 | R92: 0.2978 | S92: 0.2957 | T92: 0.2949 | U92: 0.2955 | V92: 0.298 | W92: 0.2969 | X92: 0.2968 | Y92: 0.3023 | Z92: 0.2985 | AA92: 0.2965 | AB92: 0.297 | AC92: 0.2946 | AD92: 0.2874 | AE92: 0.2819173893 | AF92: 0.2670914833 | AG92: 0.2671009502 | AH92: 0.261510754 | AI92: 0.2506704211 | AJ92: 0.2463237092 | AK92: 0.2427856186 | AL92: 0.2310174652 | AM92: 0.2242441313 | AN92: n/a | AO92: n/a | AP92: n/a | AQ92: n/a | AR92: n/a | AS92: n/a | AT92: n/a | AU92: n/a | AV92: n/a | AW92: n/a | AX92: n/a
A93: % of Variable Rate Mortgages | B93: 0.748 | C93: 0.7534 | D93: 0.7603 | E93: 0.7686 | F93: 0.7751 | G93: 0.7786 | H93: 0.7777 | I93: 0.7774 | J93: 0.7729 | K93: 0.7809 | L93: 0.7799 | M93: 0.7766 | N93: 0.7746 | O93: 0.7737 | P93: 0.7741 | Q93: 0.7733 | R93: 0.7719 | S93: 0.7698 | T93: 0.7625 | U93: 0.7629 | V93: 0.7573 | W93: 0.7554 | X93: 0.7476 | Y93: 0.7352 | Z93: 0.7305 | AA93: 0.7145 | AB93: 0.6931 | AC93: 0.6848 | AD93: 0.6764 | AE93: 0.6740415303 | AF93: 0.6706214694 | AG93: 0.6599736646 | AH93: 0.6608650999 | AI93: 0.6538818494 | AJ93: 0.6514971422 | AK93: 0.6425215708 | AL93: 0.6304871978 | AM93: 0.6033957879 | AN93: 0.602349838 | AO93: 0.585372921 | AP93: 0.5793101826 | AQ93: 0.5736605042 | AR93: 0.5809384545 | AS93: 0.565734729 | AT93: 0.5746116487 | AU93: 0.5805700814 | AV93: 0.5825034892 | AW93: 0.5842146051 | AX93: 0
A94: % of Fixed Rate Mortgages | B94: 0.0004 | C94: 0.0005 | D94: 0.0005 | E94: 0.0004 | F94: 0.0004 | G94: 0.0004 | H94: 0.0004 | I94: 0.0003 | J94: 0.0003 | K94: 0.001 | L94: 0.001 | M94: 0.0009 | N94: 0.0009 | O94: 0.0008 | P94: 0.0009 | Q94: 0.0009 | R94: 0.0009 | S94: 0.0009 | T94: 0.001 | U94: 0.001 | V94: 0.0011 | W94: 0.0011 | X94: 0.0012 | Y94: 0.0013 | Z94: 0.0013 | AA94: 0.0004 | AB94: 0.0005 | AC94: 0.0005 | AD94: 0.0005 | AE94: 0.0005170723286 | AF94: 0.0005453616077 | AG94: 0.0005586037823 | AH94: 0.0005657639069 | AI94: 0.0005896144138 | AJ94: 0.0006071020695 | AK94: 0.0006227346548 | AL94: 0.0006295147171 | AM94: 0.0006812095439 | AN94: 0.0006784555147 | AO94: 0.0006702702016 | AP94: 0.0006750195975 | AQ94: 0.0006526079744 | AR94: 0.0006217771243 | AS94: 0.0005920493269 | AT94: 0.0005409669884 | AU94: 0.0004733954028 | AV94: 0.0004006083675 | AW94: 0.000314456374 | AX94: 0
A95: % of Base Rate Mortgages | B95: 0.172 | C95: 0.1697 | D95: 0.166 | E95: 0.1627 | F95: 0.1592 | G95: 0.1586 | H95: 0.1584 | I95: 0.1583 | J95: 0.1621 | K95: 0.1732 | L95: 0.1755 | M95: 0.1778 | N95: 0.1789 | O95: 0.1805 | P95: 0.1816 | Q95: 0.1809 | R95: 0.1814 | S95: 0.1854 | T95: 0.1922 | U95: 0.1917 | V95: 0.1971 | W95: 0.1962 | X95: 0.1981 | Y95: 0.2101 | Z95: 0.2133 | AA95: 0.2218 | AB95: 0.2401 | AC95: 0.2435 | AD95: 0.25 | AE95: 0.253920852 | AF95: 0.2530516487 | AG95: 0.2631561843 | AH95: 0.2606642755 | AI95: 0.2710124837 | AJ95: 0.2688052738 | AK95: 0.2747860158 | AL95: 0.2811160222 | AM95: 0.3148475482 | AN95: 0.3234390248 | AO95: 0.3390614272 | AP95: 0.3644607134 | AQ95: 0.3783719753 | AR95: 0.3766104337 | AS95: 0.3905356051 | AT95: 0.3794217743 | AU95: 0.3799105502 | AV95: 0.3757719568 | AW95: 0.3951953357 | AX95: 0
A96: % of Libor Linked Mortgages | B96: 0.0795 | C96: 0.0764 | D96: 0.0732 | E96: 0.0683 | F96: 0.0653 | G96: 0.0623 | H96: 0.0634 | I96: 0.064 | J96: 0.0647 | K96: 0.0449 | L96: 0.0436 | M96: 0.0448 | N96: 0.0456 | O96: 0.0449 | P96: 0.0434 | Q96: 0.0449 | R96: 0.0458 | S96: 0.0438 | T96: 0.0444 | U96: 0.0444 | V96: 0.0446 | W96: 0.0473 | X96: 0.0531 | Y96: 0.0535 | Z96: 0.0549 | AA96: 0.0633 | AB96: 0.0663 | AC96: 0.0713 | AD96: 0.0731 | AE96: 0.07152054532 | AF96: 0.07578152027 | AG96: 0.07631154733 | AH96: 0.07790486071 | AI96: 0.07451605249 | AJ96: 0.07909048191 | AK96: 0.08206967871 | AL96: 0.08776726534 | AM96: 0.08107545443 | AN96: 0.07353268174 | AO96: 0.07489538158 | AP96: 0.05555408438 | AQ96: 0.04731491246 | AR96: 0.04182933465 | AS96: 0.04313761659 | AT96: 0.04542560999 | AU96: 0.03904597305 | AV96: 0.04132394557 | AW96: 0.0202756028 | AX96: 0
A97: Weighted Average Loan Size | B97: 45879.58 | C97: 45024 | D97: 44194.32 | E97: 43365.31 | F97: 42896.85 | G97: 42742.19 | H97: 42506.65 | I97: 42083.39 | J97: 41352.68 | K97: 41193.86 | L97: 40853.02 | M97: 40756.57 | N97: 40731.58 | O97: 40452 | P97: 40429.02 | Q97: 40397.01 | R97: 40006.4 | S97: 40161.9 | T97: 40360.36 | U97: 40511.12 | V97: 40210.28 | W97: 39926.39 | X97: 39705.99 | Y97: 39828.01 | Z97: 39734.28 | AA97: 41100.78 | AB97: 42544.91 | AC97: 42034 | AD97: 42001.25 | AE97: 42418.9161 | AF97: 41773.09902 | AG97: 41338.09134 | AH97: 40731.05318 | AI97: 40256.74666 | AJ97: 40496.05384 | AK97: 40227.57206 | AL97: 40877.77992 | AM97: 37504.21496 | AN97: 37232.31245 | AO97: 36641.7633 | AP97: 35273.12442 | AQ97: 34670.07615 | AR97: 35104.82562 | AS97: 33927.84954 | AT97: 33701.06761 | AU97: 34095.2209 | AV97: 34286.48086 | AW97: 32904.00785 | AX97: 0
A98: Weighted Average Interest Rate | B98: 0.07572 | C98: 0.08064 | D98: 0.08131 | E98: 0.07898 | F98: 0.07783 | G98: 0.07797 | H98: 0.0772 | I98: 0.06319 | J98: 0.0546 | K98: 0.05435 | L98: 0.05416 | M98: 0.05402 | N98: 0.05398 | O98: 0.05401 | P98: 0.05403 | Q98: 0.05402 | R98: 0.05402 | S98: 0.05394 | T98: 0.05369 | U98: 0.05376 | V98: 0.05359 | W98: 0.05348 | X98: 0.05306 | Y98: 0.05251 | Z98: 0.05234 | AA98: 0.05156 | AB98: 0.05057 | AC98: 0.05009 | AD98: 0.04966 | AE98: 0.04952719489 | AF98: 0.04933972918 | AG98: 0.04881968695 | AH98: 0.04881341343 | AI98: 0.04830975435 | AJ98: 0.04808157788 | AK98: 0.04764305022 | AL98: 0.0469689759 | AM98: 0.04534903946 | AN98: 0.04281219213 | AO98: 0.04206123728 | AP98: 0.04159556474 | AQ98: 0.04122865068 | AR98: 0.04155842784 | AS98: 0.04329826628 | AT98: 0.04301592328 | AU98: 0.04317152915 | AV98: 0.04554980371 | AW98: 0.04570543805 | AX98: 0
A99: Weighted Average Maturity Date (years) | B99: 9.37 | C99: 9.06 | D99: 8.75 | E99: 8.39 | F99: 8.11 | G99: 7.91 | H99: 7.7 | I99: 7.45 | J99: 7.19 | K99: 6.94 | L99: 6.76 | M99: 6.54 | N99: 6.33 | O99: 6.11 | P99: 5.91 | Q99: 5.69 | R99: 5.5 | S99: 5.33 | T99: 5.25 | U99: 5.16 | V99: 5.02 | W99: 4.92 | X99: 4.88 | Y99: 4.85 | Z99: 4.76 | AA99: 4.83 | AB99: 4.81 | AC99: 4.71 | AD99: 4.67 | AE99: 4.666589272 | AF99: 4.661495831 | AG99: 4.530798906 | AH99: 4.348303084 | AI99: 4.400424253 | AJ99: 4.387248426 | AK99: 4.338366919 | AL99: 4.315229192 | AM99: 4.618322578 | AN99: 4.589032773 | AO99: 4.480393356 | AP99: 4.607231349 | AQ99: 4.517626205 | AR99: 4.386176381 | AS99: 4.356751872 | AT99: 4.229356391 | AU99: 4.13537416 | AV99: 3.955256677 | AW99: 4.10534434 | AX99: 0
A100: Weighted Average Seasoning (years) | B100: 11.84 | C100: 12.21 | D100: 12.6 | E100: 13.02 | F100: 13.38 | G100: 13.69 | H100: 13.93 | I100: 14.3 | J100: 14.62 | K100: 14.89 | L100: 15.16 | M100: 15.43 | N100: 15.71 | O100: 16.03 | P100: 16.29 | Q100: 16.52 | R100: 16.81 | S100: 17.04 | T100: 17.17 | U100: 17.35 | V100: 17.57 | W100: 17.74 | X100: 17.78 | Y100: 17.83 | Z100: 17.96 | AA100: 17.83 | AB100: 17.8 | AC100: 17.91 | AD100: 17.99 | AE100: 18.08926325 | AF100: 18.17484615 | AG100: 18.2765276 | AH100: 18.42379658 | AI100: 18.4251235 | AJ100: 18.56422069 | AK100: 18.68979325 | AL100: 18.73295886 | AM100: 18.38801195 | AN100: 18.53046854 | AO100: 18.64702981 | AP100: 18.70790769 | AQ100: 18.8859551 | AR100: 19.19178671 | AS100: 19.31698413 | AT100: 19.59028837 | AU100: 19.78894219 | AV100: 20.03633766 | AW100: 20.25018705 | AX100: 0
A101: % of Interest Only Mortgages | B101: 0.713 | C101: 0.7169 | D101: 0.7246 | E101: 0.7294 | F101: 0.7409 | G101: 0.7437 | H101: 0.7445 | I101: 0.7512 | J101: 0.7553 | K101: 0.7615 | L101: 0.7617 | M101: 0.7673 | N101: 0.7712 | O101: 0.7753 | P101: 0.7794 | Q101: 0.7846 | R101: 0.7889 | S101: 0.7904 | T101: 0.7898 | U101: 0.7879 | V101: 0.7928 | W101: 0.7888 | X101: 0.7803 | Y101: 0.7699 | Z101: 0.7693 | AA101: 0.7598 | AB101: 0.7529 | AC101: 0.7474 | AD101: 0.7426 | AE101: 0.7389775017 | AF101: 0.7297411518 | AG101: 0.7271040618 | AH101: 0.7271444387 | AI101: 0.7241078351 | AJ101: 0.7281382245 | AK101: 0.7185974603 | AL101: 0.7138266397 | AM101: 0.6891714301 | AN101: 0.6827794721 | AO101: 0.6800798215 | AP101: 0.6628108726 | AQ101: 0.6693692077 | AR101: 0.6728399054 | AS101: 0.6631427706 | AT101: 0.6718101396 | AU101: 0.6767424064 | AV101: 0.6888594051 | AW101: 0.6804683193 | AX101: 0
A102: % of Repayment Mortgages | B102: 0.287 | C102: 0.2831 | D102: 0.2754 | E102: 0.2706 | F102: 0.2591 | G102: 0.2563 | H102: 0.2555 | I102: 0.2488 | J102: 0.2447 | K102: 0.2385 | L102: 0.2383 | M102: 0.2327 | N102: 0.2288 | O102: 0.2247 | P102: 0.2206 | Q102: 0.2154 | R102: 0.2111 | S102: 0.2096 | T102: 0.2102 | U102: 0.2121 | V102: 0.2072 | W102: 0.2112 | X102: 0.2197 | Y102: 0.2301 | Z102: 0.2307 | AA102: 0.2402 | AB102: 0.2471 | AC102: 0.2526 | AD102: 0.2574 | AE102: 0.2610224983 | AF102: 0.2702588482 | AG102: 0.2728959382 | AH102: 0.2728555613 | AI102: 0.2758921649 | AJ102: 0.2718617755 | AK102: 0.2814025397 | AL102: 0.2861733603 | AM102: 0.3108285699 | AN102: 0.3172205279 | AO102: 0.3199201785 | AP102: 0.3371891274 | AQ102: 0.3306307923 | AR102: 0.3271600946 | AS102: 0.3368572294 | AT102: 0.3281898604 | AU102: 0.3232575936 | AV102: 0.3111405949 | AW102: 0.3195316807 | AX102: 0
A103: % of Mortgages in London | B103: 0.1087 | C103: 0.1077 | D103: 0.1095 | E103: 0.1121 | F103: 0.115 | G103: 0.1168 | H103: 0.1158 | I103: 0.1156 | J103: 0.1154 | K103: 0.116 | L103: 0.1166 | M103: 0.1176 | N103: 0.1164 | O103: 0.1174 | P103: 0.1187 | Q103: 0.1198 | R103: 0.1208 | S103: 0.1208 | T103: 0.1208 | U103: 0.1228 | V103: 0.1214 | W103: 0.1228 | X103: 0.1244 | Y103: 0.1268 | Z103: 0.121 | AA103: 0.1241 | AB103: 0.1249 | AC103: 0.1201 | AD103: 0.1146 | AE103: 0.1165874514 | AF103: 0.1215247055 | AG103: 0.1159896704 | AH103: 0.1159107785 | AI103: 0.117005293 | AJ103: 0.1125078854 | AK103: 0.1175339182 | AL103: 0.1210805922 | AM103: 0.135423843 | AN103: 0.1385988408 | AO103: 0.1470650476 | AP103: 0.1289745814 | AQ103: 0.1369672484 | AR103: 0.1407181194 | AS103: 0.1167708778 | AT103: 0.1184906861 | AU103: 0.1239341704 | AV103: 0.1191600002 | AW103: 0.1143651406 | AX103: 0
A104: % of Mortgages in the South East | B104: 0.3615 | C104: 0.3652 | D104: 0.3628 | E104: 0.359 | F104: 0.3606 | G104: 0.3583 | H104: 0.3583 | I104: 0.3588 | J104: 0.3575 | K104: 0.3573 | L104: 0.3605 | M104: 0.3653 | N104: 0.3689 | O104: 0.368 | P104: 0.3674 | Q104: 0.3664 | R104: 0.368 | S104: 0.3694 | T104: 0.3693 | U104: 0.3681 | V104: 0.3688 | W104: 0.3632 | X104: 0.3545 | Y104: 0.3489 | Z104: 0.3525 | AA104: 0.3361 | AB104: 0.3313 | AC104: 0.3229 | AD104: 0.3278 | AE104: 0.3221361408 | AF104: 0.3101262084 | AG104: 0.3139628739 | AH104: 0.3113838316 | AI104: 0.3077459999 | AJ104: 0.321563352 | AK104: 0.309248101 | AL104: 0.31094719 | AM104: 0.2514980363 | AN104: 0.2515847239 | AO104: 0.2430750467 | AP104: 0.2536722273 | AQ104: 0.2427395612 | AR104: 0.2424274512 | AS104: 0.2544618996 | AT104: 0.2553566766 | AU104: 0.2423946672 | AV104: 0.2489002464 | AW104: 0.2363460577 | AX104: 0
A105: % of Owner Occupied Mortgages | B105: 0.9895 | C105: 0.9892 | D105: 0.9914 | E105: 0.991 | F105: 0.9922 | G105: 0.9923 | H105: 0.992 | I105: 0.992 | J105: 0.9918 | K105: 0.9911 | L105: 0.9909 | M105: 0.9912 | N105: 0.9912 | O105: 0.9921 | P105: 0.9921 | Q105: 0.9921 | R105: 0.9919 | S105: 0.9946 | T105: 0.9945 | U105: 0.9945 | V105: 0.9943 | W105: 0.9943 | X105: 0.9948 | Y105: 0.9948 | Z105: 0.995 | AA105: 0.9949 | AB105: 0.9949 | AC105: 0.9951 | AD105: 0.9951 | AE105: 0.9954173023 | AF105: 0.9958288898 | AG105: 0.9960454749 | AH105: 0.9967476375 | AI105: 0.9970059777 | AJ105: 0.9976616781 | AK105: 1 | AL105: 1 | AM105: 1 | AN105: 1 | AO105: 1 | AP105: 1 | AQ105: 1 | AR105: 1 | AS105: 1 | AT105: 1 | AU105: 1 | AV105: 1 | AW105: 1 | AX105: 0
A106: % of Commerical Mortgages | B106: 0.0105 | C106: 0.0108 | D106: 0.0086 | E106: 0.009 | F106: 0.0078 | G106: 0.0077 | H106: 0.008 | I106: 0.008 | J106: 0.0082 | K106: 0.0089 | L106: 0.0091 | M106: 0.0088 | N106: 0.0088 | O106: 0.0079 | P106: 0.0079 | Q106: 0.0079 | R106: 0.0081 | S106: 0.0054 | T106: 0.0055 | U106: 0.0055 | V106: 0.0057 | W106: 0.0057 | X106: 0.0052 | Y106: 0.0052 | Z106: 0.005 | AA106: 0.0051 | AB106: 0.0051 | AC106: 0.0049 | AD106: 0.0049 | AE106: 0.004582697675 | AF106: 0.004171110155 | AG106: 0.003954525098 | AH106: 0.003252362471 | AI106: 0.002994022265 | AJ106: 0.002338321858 | AK106: 0 | AL106: 0 | AM106: 0 | AN106: 0 | AO106: 0 | AP106: 0 | AQ106: 0 | AR106: 0 | AS106: 0 | AT106: 0 | AU106: 0 | AV106: 0 | AW106: 0 | AX106: 0
A107: MTL Lifetime Redemption Rate | B107: 0.3788 | C107: 0.3758 | D107: 0.3704 | E107: 0.357 | F107: 0.3511 | G107: 0.3377 | H107: 0.3267 | I107: 0.3174 | J107: 0.3132 | K107: 0.3047 | L107: 0.2987 | M107: 0.2905 | N107: 0.2848 | O107: 0.282 | P107: 0.2776 | Q107: 0.2706 | R107: 0.2673 | S107: 0.2652 | T107: 0.2663 | U107: 0.2662 | V107: 0.2651 | W107: 0.2666 | X107: 0.2697 | Y107: 0.2707 | Z107: 0.2711 | AA107: 0.274 | AB107: 0.2767 | AC107: 0.2777 | AD107: 0.2768 | AE107: 0.2772 | AF107: 0.2788 | AG107: 0.2779 | AH107: 0.2763 | AI107: 0.2775 | AJ107: 0.2779 | AK107: 0.2784 | AL107: 0.278 | AM107: 0.2832 | AN107: 0.2826 | AO107: 0.2819 | AP107: 0.2831 | AQ107: 0.2823 | AR107: 0.2874875984 | AS107: 0.2881 | AT107: 0.2875 | AU107: 0.2862 | AV107: 0.285 | AW107: 0.2848 | AX107: 1
A108: Aggregate Potential Redraw Amount | B108: 23637945.4 | C108: 21754740.38 | D108: 19925182.13 | E108: 18785097.34 | F108: 17396197.09 | G108: 16679139.92 | H108: 15973909.8 | I108: 14986709.18 | J108: 13823104.53 | K108: 14802150.2 | L108: 14305968.69 | M108: 13445791.99 | N108: 13019486.34 | O108: 12955665.18 | P108: 12235046.71 | Q108: 11478020.92 | R108: 11337930.31 | S108: 10646245.85 | T108: 10026813.62 | U108: 9588441.02 | V108: 9712765.77 | W108: 8940104.15 | X108: 8425834.66 | Y108: 7845388 | Z108: 7319659.95 | AA108: 5872696.32 | AB108: 2250.56 | AC108: 0 | AD108: 0 | AE108: 0 | AF108: 0 | AG108: 0 | AH108: 0 | AI108: 0 | AJ108: 0 | AK108: 0 | AL108: 0 | AM108: 0 | AN108: 0 | AO108: 0 | AP108: 0 | AQ108: 0 | AR108: 0 | AS108: 0 | AT108: 0 | AU108: 0 | AV108: 0 | AW108: 0 | AX108: 0
A109: Number of Properties in Possession | B109: 1 | C109: 2 | D109: 2 | E109: 1 | F109: 0 | G109: 0 | H109: 0 | I109: 2 | J109: 3 | K109: 0 | L109: 6 | M109: 4 | N109: 4 | O109: 4 | P109: 3 | Q109: 3 | R109: 3 | S109: 2 | T109: 2 | U109: 2 | V109: 4 | W109: 4 | X109: 2 | Y109: 3 | Z109: 1 | AA109: 3 | AB109: 2 | AC109: 1 | AD109: 2 | AE109: 2 | AF109: 1 | AG109: 1 | AH109: 1 | AI109: 2 | AJ109: 1 | AK109: 1 | AL109: 1 | AM109: 1 | AN109: 2 | AO109: 3 | AP109: 1 | AQ109: 1 | AR109: 1 | AS109: 0 | AT109: 1 | AU109: 1 | AV109: 1 | AW109: 0 | AX109: 0
A110: Appointment of a Receiver of Rent | B110: 0 | C110: 0 | D110: 0 | E110: 0 | F110: 0 | G110: 0 | H110: 0 | I110: 0 | J110: 1 | K110: 1 | L110: 0 | M110: 0 | N110: 0 | O110: 0 | P110: 0 | Q110: 0 | R110: 0 | S110: 0 | T110: 0 | U110: 0 | V110: 0 | W110: 0 | X110: 0 | Y110: 0 | Z110: 0 | AA110: 0 | AB110: 0 | AC110: 0 | AD110: 0 | AE110: 0 | AF110: 0 | AG110: 0 | AH110: 0 | AI110: 0 | AJ110: 0 | AK110: 0 | AL110: 0 | AM110: 0 | AN110: 0 | AO110: 0 | AP110: 0 | AQ110: 0 | AR110: 0 | AS110: 0 | AT110: 0 | AU110: 0 | AV110: 0 | AW110: 0 | AX110: 0
A111: MTL Quarterly Losses | B111: 34 | C111: -8 | D111: 0 | E111: 1 | F111: -2 | G111: 0 | H111: 14 | I111: -4 | J111: -6 | K111: 25 | L111: 0 | M111: 0 | N111: -17 | O111: 1 | P111: -1 | Q111: -1 | R111: 1 | S111: 12 | T111: -12 | U111: 0 | V111: 0 | W111: 0 | X111: 0 | Y111: 11 | Z111: -10 | AA111: 0 | AB111: 1 | AC111: 0 | AD111: 0 | AE111: 1 | AF111: 0 | AG111: 3 | AH111: 11 | AI111: -10 | AJ111: 0 | AK111: 1 | AL111: 0 | AM111: 146 | AN111: 25 | AO111: 0 | AP111: 1 | AQ111: -1 | AR111: 0 | AS111: 0 | AT111: 0 | AU111: 0 | AV111: 0 | AW111: 0 | AX111: 0
A112: Arrears excluding Receiver of Rent and Possession Cases
A113: Performing Loans | B113: 0.9039 | C113: 0.9039 | D113: 0.8982 | E113: 0.8911 | F113: 0.8946 | G113: 0.8877 | H113: 0.8959 | I113: 0.8826 | J113: 0.899 | K113: 0.9059 | L113: 0.9091 | M113: 0.9102 | N113: 0.8989 | O113: 0.912 | P113: 0.9091 | Q113: 0.8952 | R113: 0.8954 | S113: 0.9026 | T113: 0.9092 | U113: 0.9009 | V113: 0.9145 | W113: 0.9054 | X113: 0.9056 | Y113: 0.904 | Z113: 0.9049 | AA113: 0.9284 | AB113: 0.9335 | AC113: 0.9351 | AD113: 0.929 | AE113: 0.9361433108 | AF113: 0.9471763344 | AG113: 0.9510510466 | AH113: 0.9394386948 | AI113: 0.9404279947 | AJ113: 0.9512502551 | AK113: 0.92860687 | AL113: 0.9413933793 | AM113: 0.9484633918 | AN113: 0.957959474 | AO113: 0.9629348979 | AP113: 0.9557451479 | AQ113: 0.9548842028 | AR113: 0.945679013 | AS113: 0.9265345157 | AT113: 0.9506850293 | AU113: 0.9504276789 | AV113: 0.9286669243 | AW113: 0.9157041744 | AX113: 0
A114: >1 to 2 months arrears | B114: 0.0331 | C114: 0.0374 | D114: 0.04 | E114: 0.049 | F114: 0.0432 | G114: 0.038 | H114: 0.0381 | I114: 0.0406 | J114: 0.0283 | K114: 0.0242 | L114: 0.0299 | M114: 0.0247 | N114: 0.0337 | O114: 0.0215 | P114: 0.0272 | Q114: 0.0299 | R114: 0.026 | S114: 0.026 | T114: 0.0211 | U114: 0.0332 | V114: 0.0108 | W114: 0.0198 | X114: 0.0153 | Y114: 0.02 | Z114: 0.0158 | AA114: 0.0131 | AB114: 0.0173 | AC114: 0.0146 | AD114: 0.0177 | AE114: 0.02148989788 | AF114: 0.01041472727 | AG114: 0.01029908674 | AH114: 0.02023541291 | AI114: 0.01772986932 | AJ114: 0.01409326297 | AK114: 0.03137533966 | AL114: 0.01493090916 | AM114: 0.02551194024 | AN114: 0.01447092279 | AO114: 0.002601855386 | AP114: 0.0177002294 | AQ114: 0.01454379879 | AR114: 0.008137021954 | AS114: 0.03041706195 | AT114: 0.02083997873 | AU114: 0.0003103064424 | AV114: 0.01856326643 | AW114: 0.02854727752 | AX114: 0
A115: >2 to 3 months arrears | B115: 0.0181 | C115: 0.0148 | D115: 0.0157 | E115: 0.0143 | F115: 0.0161 | G115: 0.0293 | H115: 0.0188 | I115: 0.0172 | J115: 0.012 | K115: 0.0105 | L115: 0.0105 | M115: 0.0145 | N115: 0.0125 | O115: 0.0138 | P115: 0.0086 | Q115: 0.0173 | R115: 0.02 | S115: 0.0119 | T115: 0.0155 | U115: 0.0129 | V115: 0.0187 | W115: 0.0154 | X115: 0.0185 | Y115: 0.0158 | Z115: 0.0126 | AA115: 0.0134 | AB115: 0.013 | AC115: 0.0167 | AD115: 0.0215 | AE115: 0.01069008389 | AF115: 0.01255227127 | AG115: 0.009384814613 | AH115: 0.01299327069 | AI115: 0.0138959687 | AJ115: 0.01095559869 | AK115: 0.01256742037 | AL115: 0.01454681203 | AM115: 0.00919957382 | AN115: 0.00924777601 | AO115: 0.01474101795 | AP115: 0.00481938011 | AQ115: 0.006488988955 | AR115: 0.0188978632 | AS115: 0.007062222377 | AT115: 0.01380273091 | AU115: 0.002630114946 | AV115: 0.006436757208 | AW115: 0.006320805802 | AX115: 0
A116: >3 months arrears | B116: 0.0449 | C116: 0.0439 | D116: 0.0461 | E116: 0.0456 | F116: 0.0461 | G116: 0.045 | H116: 0.0472 | I116: 0.0596 | J116: 0.0607 | K116: 0.0594 | L116: 0.0505 | M116: 0.0506 | N116: 0.0549 | O116: 0.0527 | P116: 0.0551 | Q116: 0.0576 | R116: 0.0586 | S116: 0.0595 | T116: 0.0542 | U116: 0.053 | V116: 0.056 | W116: 0.0594 | X116: 0.0606 | Y116: 0.0602 | Z116: 0.0667 | AA116: 0.0451 | AB116: 0.0362 | AC116: 0.0336 | AD116: 0.0318 | AE116: 0.03167670745 | AF116: 0.02985666709 | AG116: 0.02926505204 | AH116: 0.02733262158 | AI116: 0.02794616728 | AJ116: 0.02370088323 | AK116: 0.02745036995 | AL116: 0.02912889948 | AM116: 0.01682509415 | AN116: 0.01832182723 | AO116: 0.01972222872 | AP116: 0.02173524264 | AQ116: 0.02408300949 | AR116: 0.02728610189 | AS116: 0.03598619993 | AT116: 0.01467226102 | AU116: 0.04663189969 | AV116: 0.04633305205 | AW116: 0.04942774229 | AX116: 0
A117: Total | B117: =SUM(B113:B116) -> 1 | C117: 1 | D117: 1 | E117: 1 | F117: 1 | G117: 1 | H117: 1 | I117: 1 | J117: 1 | K117: 1 | L117: 1 | M117: 1 | N117: 1 | O117: 1 | P117: 1 | Q117: 1 | R117: 1 | S117: 1 | T117: 1 | U117: =SUM(U113:U116) -> 1 | V117: 1 | W117: 1 | X117: 1 | Y117: 1 | Z117: 1 | AA117: =SUM(AA113:AA116) -> 1 | AB117: =SUM(AB113:AB116) -> 1 | AC117: =SUM(AC113:AC116) -> 1 | AD117: =SUM(AD113:AD116) -> 1 | AE117: =SUM(AE113:AE116) -> 1 | AF117: 1 | AG117: 1 | AH117: 1 | AI117: 1 | AJ117: 1 | AK117: 1 | AL117: 1 | AM117: 1 | AN117: 1 | AO117: 1 | AP117: 1 | AQ117: 1 | AR117: 1 | AS117: 1 | AT117: 1 | AU117: 1 | AV117: 1 | AW117: 1 | AX117: =SUM(AX113:AX116) -> 0

Sheet Graphs
O2: FIRST FLEXIBLE (NO.7) PLC
